{"text_format":"3","workbook":"xlsx","n_sheets":4,"sheets":["Sledování skóre","Váš výkon","Nastavení","Výpočty"],"not_rendered":{"defined_names":3,"comments":1},"read":"whole","date_system":"1900"}

{"sheet":"Sledování skóre","index":0,"n_rows":14,"n_cols":6,"rows_kept":14}
[null,"Sem zadejte svá skóre"]
[]
[null,null,"Třída","Typ","Popis","Skóre"]
[null,null,"Moderní francouzština","Domácí úkoly","Historie 2. světové války",{"v":0.8,"d":"80%"}]
[null,null,"Pokročilé programování v jazyce Java","Písemka",null,{"v":0.75,"d":"75%"}]
[null,null,"Španělština","Domácí úkoly",null,{"v":0.5,"d":"50%"}]
[null,null,"Teoretická fyzika","Domácí úkoly",null,{"v":0.95,"d":"95%"}]
[null,null,"Moderní francouzština","Domácí úkoly","Historie 1. světové války",{"v":0.9,"d":"90%"}]
[null,null,"Moderní francouzština","Domácí úkoly","Strany 30 - 41",{"v":0.8,"d":"80%"}]
[null,null,"Esej","Esej","Přesvědčivá práce",{"v":0.95,"d":"95%"}]
[null,null,"Matematika 1","Domácí úkoly","Strany 21 & 26",{"v":0.8,"d":"80%"}]
[null,null,"Matematika 2","Domácí úkoly","Strany 15 & 18",{"v":0.85,"d":"85%"}]
[null,null,"Matematika 1","Domácí úkoly","Strany 34–36",{"v":0.8,"d":"80%"}]
[null,null,"Matematika 2","Test",null,{"v":0.95,"d":"95%"}]

{"sheet":"Váš výkon","index":1,"n_rows":31,"n_cols":8,"rows_kept":31}
[null,"Váš výkon"]
[]
[null,null,"Celkem"]
[null,null,{"$f":"\"Hodiny: \"&SUM(tblTřídy[Hodiny k získání kreditu])","v":"Hodiny: 24"},{"$f":"AVERAGE(D7:D31)","v":{"v":0.8104761904761906,"d":"81%"}},{"$f":"AVERAGE(E7:E31)","v":{"v":2.7142857142857144,"d":"2.71"}},{"$f":"SUM(F7:F31)","v":{"v":2.625,"d":"2.63"}},{"$f":"IFERROR(HLOOKUP(D4,PrvníMapováníPrůměruZnámek,2),\"\")","v":"B-"}]
[]
[null,null,"Vyučovací hodiny","%","Průměr známek","Vážený průměr známek","Písmeno","Celkový výkon"]
[null,null,{"$f":"Výpočty!C6","v":"Moderní francouzština"},{"$f":"Výpočty!AL6","v":{"v":0.8333333333333334,"d":"83%"}},{"$f":"Výpočty!AM6","v":{"v":3,"d":"3.00"}},{"$f":"IFERROR(E7*Nastavení!D9/SUM(tblTřídy[Hodiny k získání kreditu]),\"\")","v":{"v":0.375,"d":"0.38"}},{"$f":"Výpočty!AN6","v":"B"}]
[null,null,{"$f":"Výpočty!C7","v":"Teoretická fyzika"},{"$f":"Výpočty!AL7","v":{"v":0.95,"d":"95%"}},{"$f":"Výpočty!AM7","v":{"v":4,"d":"4.00"}},{"$f":"IFERROR(E8*Nastavení!D10/SUM(tblTřídy[Hodiny k získání kreditu]),\"\")","v":{"v":0.5,"d":"0.50"}},{"$f":"Výpočty!AN7","v":"A"}]
[null,null,{"$f":"Výpočty!C8","v":"Matematika 1"},{"$f":"Výpočty!AL8","v":{"v":0.8000000000000002,"d":"80%"}},{"$f":"Výpočty!AM8","v":2.67},{"$f":"IFERROR(E9*Nastavení!D11/SUM(tblTřídy[Hodiny k získání kreditu]),\"\")","v":{"v":0.445,"d":"0.45"}},{"$f":"Výpočty!AN8","v":"B-"}]
[null,null,{"$f":"Výpočty!C9","v":"Matematika 2"},{"$f":"Výpočty!AL9","v":{"v":0.89,"d":"89%"}},{"$f":"Výpočty!AM9","v":3.33},{"$f":"IFERROR(E10*Nastavení!D12/SUM(tblTřídy[Hodiny k získání kreditu]),\"\")","v":{"v":0.555,"d":"0.56"}},{"$f":"Výpočty!AN9","v":"B+"}]
[null,null,{"$f":"Výpočty!C10","v":"Pokročilé programování v jazyce Java"},{"$f":"Výpočty!AL10","v":{"v":0.7500000000000001,"d":"75%"}},{"$f":"Výpočty!AM10","v":{"v":2,"d":"2.00"}},{"$f":"IFERROR(E11*Nastavení!D13/SUM(tblTřídy[Hodiny k získání kreditu]),\"\")","v":{"v":0.4166666666666667,"d":"0.42"}},{"$f":"Výpočty!AN10","v":"C"}]
[null,null,{"$f":"Výpočty!C11","v":"Španělština"},{"$f":"Výpočty!AL11","v":{"v":0.5,"d":"50%"}},{"$f":"Výpočty!AM11","v":{"v":0,"d":"0.00"}},{"$f":"IFERROR(E12*Nastavení!D14/SUM(tblTřídy[Hodiny k získání kreditu]),\"\")","v":{"v":0,"d":"0.00"}},{"$f":"Výpočty!AN11","v":"F"}]
[null,null,{"$f":"Výpočty!C12","v":"Esej"},{"$f":"Výpočty!AL12","v":{"v":0.95,"d":"95%"}},{"$f":"Výpočty!AM12","v":{"v":4,"d":"4.00"}},{"$f":"IFERROR(E13*Nastavení!D15/SUM(tblTřídy[Hodiny k získání kreditu]),\"\")","v":{"v":0.3333333333333333,"d":"0.33"}},{"$f":"Výpočty!AN12","v":"A"}]
[null,null,{"$f":"Výpočty!C13","v":""},{"$f":"Výpočty!AL13","v":""},{"$f":"Výpočty!AM13","v":""},{"$f":"IFERROR(E14*Nastavení!D16/SUM(tblTřídy[Hodiny k získání kreditu]),\"\")","v":""},{"$f":"Výpočty!AN13","v":""}]
[null,null,{"$f":"Výpočty!C14","v":""},{"$f":"Výpočty!AL14","v":""},{"$f":"Výpočty!AM14","v":""},{"$f":"IFERROR(E15*Nastavení!D17/SUM(tblTřídy[Hodiny k získání kreditu]),\"\")","v":""},{"$f":"Výpočty!AN14","v":""}]
[null,null,{"$f":"Výpočty!C15","v":""},{"$f":"Výpočty!AL15","v":""},{"$f":"Výpočty!AM15","v":""},{"$f":"IFERROR(E16*Nastavení!D18/SUM(tblTřídy[Hodiny k získání kreditu]),\"\")","v":""},{"$f":"Výpočty!AN15","v":""}]
[null,null,{"$f":"Výpočty!C16","v":""},{"$f":"Výpočty!AL16","v":""},{"$f":"Výpočty!AM16","v":""},{"$f":"IFERROR(E17*Nastavení!D19/SUM(tblTřídy[Hodiny k získání kreditu]),\"\")","v":""},{"$f":"Výpočty!AN16","v":""}]
[null,null,{"$f":"Výpočty!C17","v":""},{"$f":"Výpočty!AL17","v":""},{"$f":"Výpočty!AM17","v":""},{"$f":"IFERROR(E18*Nastavení!D20/SUM(tblTřídy[Hodiny k získání kreditu]),\"\")","v":""},{"$f":"Výpočty!AN17","v":""}]
[null,null,{"$f":"Výpočty!C18","v":""},{"$f":"Výpočty!AL18","v":""},{"$f":"Výpočty!AM18","v":""},{"$f":"IFERROR(E19*Nastavení!D21/SUM(tblTřídy[Hodiny k získání kreditu]),\"\")","v":""},{"$f":"Výpočty!AN18","v":""}]
[null,null,{"$f":"Výpočty!C19","v":""},{"$f":"Výpočty!AL19","v":""},{"$f":"Výpočty!AM19","v":""},{"$f":"IFERROR(E20*Nastavení!D22/SUM(tblTřídy[Hodiny k získání kreditu]),\"\")","v":""},{"$f":"Výpočty!AN19","v":""}]
[null,null,{"$f":"Výpočty!C20","v":""},{"$f":"Výpočty!AL20","v":""},{"$f":"Výpočty!AM20","v":""},{"$f":"IFERROR(E21*Nastavení!D23/SUM(tblTřídy[Hodiny k získání kreditu]),\"\")","v":""},{"$f":"Výpočty!AN20","v":""}]
[null,null,{"$f":"Výpočty!C21","v":""},{"$f":"Výpočty!AL21","v":""},{"$f":"Výpočty!AM21","v":""},{"$f":"IFERROR(E22*Nastavení!D24/SUM(tblTřídy[Hodiny k získání kreditu]),\"\")","v":""},{"$f":"Výpočty!AN21","v":""}]
[null,null,{"$f":"Výpočty!C22","v":""},{"$f":"Výpočty!AL22","v":""},{"$f":"Výpočty!AM22","v":""},{"$f":"IFERROR(E23*Nastavení!D25/SUM(tblTřídy[Hodiny k získání kreditu]),\"\")","v":""},{"$f":"Výpočty!AN22","v":""}]
[null,null,{"$f":"Výpočty!C23","v":""},{"$f":"Výpočty!AL23","v":""},{"$f":"Výpočty!AM23","v":""},{"$f":"IFERROR(E24*Nastavení!D26/SUM(tblTřídy[Hodiny k získání kreditu]),\"\")","v":""},{"$f":"Výpočty!AN23","v":""}]
[null,null,{"$f":"Výpočty!C24","v":""},{"$f":"Výpočty!AL24","v":""},{"$f":"Výpočty!AM24","v":""},{"$f":"IFERROR(E25*Nastavení!D27/SUM(tblTřídy[Hodiny k získání kreditu]),\"\")","v":""},{"$f":"Výpočty!AN24","v":""}]
[null,null,{"$f":"Výpočty!C25","v":""},{"$f":"Výpočty!AL25","v":""},{"$f":"Výpočty!AM25","v":""},{"$f":"IFERROR(E26*Nastavení!D28/SUM(tblTřídy[Hodiny k získání kreditu]),\"\")","v":""},{"$f":"Výpočty!AN25","v":""}]
[null,null,{"$f":"Výpočty!C26","v":""},{"$f":"Výpočty!AL26","v":""},{"$f":"Výpočty!AM26","v":""},{"$f":"IFERROR(E27*Nastavení!D29/SUM(tblTřídy[Hodiny k získání kreditu]),\"\")","v":""},{"$f":"Výpočty!AN26","v":""}]
[null,null,{"$f":"Výpočty!C27","v":""},{"$f":"Výpočty!AL27","v":""},{"$f":"Výpočty!AM27","v":""},{"$f":"IFERROR(E28*Nastavení!D30/SUM(tblTřídy[Hodiny k získání kreditu]),\"\")","v":""},{"$f":"Výpočty!AN27","v":""}]
[null,null,{"$f":"Výpočty!C28","v":""},{"$f":"Výpočty!AL28","v":""},{"$f":"Výpočty!AM28","v":""},{"$f":"IFERROR(E29*Nastavení!D31/SUM(tblTřídy[Hodiny k získání kreditu]),\"\")","v":""},{"$f":"Výpočty!AN28","v":""}]
[null,null,{"$f":"Výpočty!C29","v":""},{"$f":"Výpočty!AL29","v":""},{"$f":"Výpočty!AM29","v":""},{"$f":"IFERROR(E30*Nastavení!D32/SUM(tblTřídy[Hodiny k získání kreditu]),\"\")","v":""},{"$f":"Výpočty!AN29","v":""}]
[null,null,{"$f":"Výpočty!C30","v":""},{"$f":"Výpočty!AL30","v":""},{"$f":"Výpočty!AM30","v":""},{"$f":"IFERROR(E31*Nastavení!D33/SUM(tblTřídy[Hodiny k získání kreditu]),\"\")","v":""},{"$f":"Výpočty!AN30","v":""}]

{"sheet":"Nastavení","index":2,"n_rows":15,"n_cols":16,"rows_kept":15,"merged":[[5,2,5,15]]}
[null,"Nastavení"]
[null,null,"Skóre a mapování průměru známek"]
[null,null,"Procenta",{"v":0,"d":"0%"},{"v":0.6,"d":"60%"},{"v":0.63,"d":"63%"},{"v":0.67,"d":"67%"},{"v":0.7,"d":"70%"},{"v":0.73,"d":"73%"},{"v":0.77,"d":"77%"},{"v":0.8,"d":"80%"},{"v":0.83,"d":"83%"},{"v":0.87,"d":"87%"},{"v":0.9,"d":"90%"},{"v":0.93,"d":"93%"},{"v":0.97,"d":"97%"}]
[null,null,"Písmenná známka","F","D-","D","D+","C-","C","C+","B-","B","B+","A-","A","A+"]
[null,null,"Průměr známek",0,0.67,1,1.33,1.67,2,2.33,2.67,3,3.33,3.67,4,4]
[]
[null,null,"Vážené skóre pro až 25 předmětů"]
[null,null,"Předměty, které navštěvujete","Hodiny k získání kreditu","Domácí úkoly","Esej","Test","Projekt","Písemka","Závěrečná zkouška","Jiné","Celkem %"]
[null,null,"Moderní francouzština",{"v":3,"d":"3.0"},{"v":0.1,"d":"10%"},{"v":0.15,"d":"15%"},{"v":0.15,"d":"15%"},{"v":0.1,"d":"10%"},{"v":0.2,"d":"20%"},{"v":0.3,"d":"30%"},null,{"$f":"SUM(tblTřídy[[#This Row],[Domácí úkoly]:[Jiné]])","v":{"v":1,"d":"100%"}}]
[null,null,"Teoretická fyzika",{"v":3,"d":"3.0"},{"v":0.15,"d":"15%"},{"v":0.15,"d":"15%"},{"v":0.1,"d":"10%"},{"v":0.1,"d":"10%"},{"v":0.15,"d":"15%"},{"v":0.3,"d":"30%"},{"v":0.05,"d":"5%"},{"$f":"SUM(tblTřídy[[#This Row],[Domácí úkoly]:[Jiné]])","v":{"v":1,"d":"100%"}}]
[null,null,"Matematika 1",{"v":4,"d":"4.0"},{"v":0.1,"d":"10%"},{"v":0.15,"d":"15%"},{"v":0.15,"d":"15%"},{"v":0.1,"d":"10%"},{"v":0.2,"d":"20%"},{"v":0.3,"d":"30%"},null,{"$f":"SUM(tblTřídy[[#This Row],[Domácí úkoly]:[Jiné]])","v":{"v":1,"d":"100%"}}]
[null,null,"Matematika 2",{"v":4,"d":"4.0"},{"v":0.15,"d":"15%"},{"v":0.15,"d":"15%"},{"v":0.1,"d":"10%"},{"v":0.1,"d":"10%"},{"v":0.15,"d":"15%"},{"v":0.3,"d":"30%"},{"v":0.05,"d":"5%"},{"$f":"SUM(tblTřídy[[#This Row],[Domácí úkoly]:[Jiné]])","v":{"v":1,"d":"100%"}}]
[null,null,"Pokročilé programování v jazyce Java",{"v":5,"d":"5.0"},{"v":0.15,"d":"15%"},{"v":0.15,"d":"15%"},{"v":0.1,"d":"10%"},{"v":0.1,"d":"10%"},{"v":0.2,"d":"20%"},{"v":0.3,"d":"30%"},null,{"$f":"SUM(tblTřídy[[#This Row],[Domácí úkoly]:[Jiné]])","v":{"v":1,"d":"100%"}}]
[null,null,"Španělština",{"v":3,"d":"3.0"},{"v":0.1,"d":"10%"},{"v":0.15,"d":"15%"},{"v":0.17,"d":"17%"},{"v":0.13,"d":"13%"},{"v":0.2,"d":"20%"},{"v":0.2,"d":"20%"},{"v":0.05,"d":"5%"},{"$f":"SUM(tblTřídy[[#This Row],[Domácí úkoly]:[Jiné]])","v":{"v":1,"d":"100%"}}]
[null,null,"Esej",{"v":2,"d":"2.0"},{"v":0.15,"d":"15%"},{"v":0.15,"d":"15%"},{"v":0.12,"d":"12%"},{"v":0.15,"d":"15%"},{"v":0.15,"d":"15%"},{"v":0.25,"d":"25%"},{"v":0.03,"d":"3%"},{"$f":"SUM(tblTřídy[[#This Row],[Domácí úkoly]:[Jiné]])","v":{"v":1,"d":"100%"}}]

{"sheet":"Výpočty","index":3,"n_rows":657,"n_cols":40,"rows_kept":657,"hidden":true}
[null,"Výpočty"]
[null,null,"Tento list poskytuje výpočty dosažených výsledků a měl by zůstat skrytý. Jakékoli změny tohoto listu by mohly způsobit chyby."]
[]
[null,null,"Seznam aktuálních předmětů","Skóre (z 1)",{"$nulls":24},"Výpočet stupně"]
[null,null,"Třída",1,2,3,4,5,6,7,8,9,10,11,12,13,14,15,16,17,18,19,20,21,22,23,24,25,{"$f":"tblTřídy[[#Headers],[Domácí úkoly]]","v":"Domácí úkoly"},{"$f":"tblTřídy[[#Headers],[Esej]]","v":"Esej"},{"$f":"tblTřídy[[#Headers],[Test]]","v":"Test"},{"$f":"tblTřídy[[#Headers],[Projekt]]","v":"Projekt"},{"$f":"tblTřídy[[#Headers],[Písemka]]","v":"Písemka"},{"$f":"tblTřídy[[#Headers],[Závěrečná zkouška]]","v":"Závěrečná zkouška"},{"$f":"tblTřídy[[#Headers],[Jiné]]","v":"Jiné"},"Celkem","Celkový možný počet bodů","Celkem %","Známka ve stupních","Písmenná známka"]
[null,null,{"$f":"IF(Nastavení!C9=\"\",\"\",Nastavení!C9)","v":"Moderní francouzština"},{"$f":"IFERROR(INDEX(tblHodnoceníPředmětu[],MATCH($C6:$C30&D$5:AB$5,Výpočty!$C$33:$C$657,0),4),\"\")","v":{"v":0.8,"d":"80%"}},{"v":0.9,"d":"90%"},{"v":0.8,"d":"80%"},"","","","","","","","","","","","","","","","","","","","","","",{"$f":"IFERROR(AVERAGEIFS(tblHodnoceníPředmětu[Skóre],tblHodnoceníPředmětu[Třída],Výpočty!$C6,tblHodnoceníPředmětu[Typ],Výpočty!AC$5)*Nastavení!E9,\"\")","v":0.08333333333333334},{"$f":"IFERROR(AVERAGEIFS(tblHodnoceníPředmětu[Skóre],tblHodnoceníPředmětu[Třída],Výpočty!$C6,tblHodnoceníPředmětu[Typ],Výpočty!AD$5)*Nastavení!F9,\"\")","v":""},{"$f":"IFERROR(AVERAGEIFS(tblHodnoceníPředmětu[Skóre],tblHodnoceníPředmětu[Třída],Výpočty!$C6,tblHodnoceníPředmětu[Typ],Výpočty!AE$5)*Nastavení!G9,\"\")","v":""},{"$f":"IFERROR(AVERAGEIFS(tblHodnoceníPředmětu[Skóre],tblHodnoceníPředmětu[Třída],Výpočty!$C6,tblHodnoceníPředmětu[Typ],Výpočty!AF$5)*Nastavení!H9,\"\")","v":""},{"$f":"IFERROR(AVERAGEIFS(tblHodnoceníPředmětu[Skóre],tblHodnoceníPředmětu[Třída],Výpočty!$C6,tblHodnoceníPředmětu[Typ],Výpočty!AG$5)*Nastavení!I9,\"\")","v":""},{"$f":"IFERROR(AVERAGEIFS(tblHodnoceníPředmětu[Skóre],tblHodnoceníPředmětu[Třída],Výpočty!$C6,tblHodnoceníPředmětu[Typ],Výpočty!AH$5)*Nastavení!J9,\"\")","v":""},{"$f":"IFERROR(AVERAGEIFS(tblHodnoceníPředmětu[Skóre],tblHodnoceníPředmětu[Třída],Výpočty!$C6,tblHodnoceníPředmětu[Typ],Výpočty!AI$5)*Nastavení!K9,\"\")","v":""},{"$f":"SUM(AC6:AI6)","v":0.08333333333333334},{"$f":"SUMIFS(Nastavení!E9:K9,Výpočty!AC6:AI6,\">0\")","v":0.1},{"$f":"IFERROR(AJ6/AK6,\"\")","v":{"v":0.8333333333333334,"d":"83%"}},{"$f":"IFERROR(HLOOKUP(AL6,PrvníMapováníPrůměruZnámek,3),\"\")","v":3},{"$f":"IFERROR(HLOOKUP(AL6,PrvníMapováníPrůměruZnámek,2),\"\")","v":"B"}]
[null,null,{"$f":"IF(Nastavení!C10=\"\",\"\",Nastavení!C10)","v":"Teoretická fyzika"},{"v":0.95,"d":"95%"},"","","","","","","","","","","","","","","","","","","","","","","","",{"$f":"IFERROR(AVERAGEIFS(tblHodnoceníPředmětu[Skóre],tblHodnoceníPředmětu[Třída],Výpočty!$C7,tblHodnoceníPředmětu[Typ],Výpočty!AC$5)*Nastavení!E10,\"\")","v":0.1425},{"$f":"IFERROR(AVERAGEIFS(tblHodnoceníPředmětu[Skóre],tblHodnoceníPředmětu[Třída],Výpočty!$C7,tblHodnoceníPředmětu[Typ],Výpočty!AD$5)*Nastavení!F10,\"\")","v":""},{"$f":"IFERROR(AVERAGEIFS(tblHodnoceníPředmětu[Skóre],tblHodnoceníPředmětu[Třída],Výpočty!$C7,tblHodnoceníPředmětu[Typ],Výpočty!AE$5)*Nastavení!G10,\"\")","v":""},{"$f":"IFERROR(AVERAGEIFS(tblHodnoceníPředmětu[Skóre],tblHodnoceníPředmětu[Třída],Výpočty!$C7,tblHodnoceníPředmětu[Typ],Výpočty!AF$5)*Nastavení!H10,\"\")","v":""},{"$f":"IFERROR(AVERAGEIFS(tblHodnoceníPředmětu[Skóre],tblHodnoceníPředmětu[Třída],Výpočty!$C7,tblHodnoceníPředmětu[Typ],Výpočty!AG$5)*Nastavení!I10,\"\")","v":""},{"$f":"IFERROR(AVERAGEIFS(tblHodnoceníPředmětu[Skóre],tblHodnoceníPředmětu[Třída],Výpočty!$C7,tblHodnoceníPředmětu[Typ],Výpočty!AH$5)*Nastavení!J10,\"\")","v":""},{"$f":"IFERROR(AVERAGEIFS(tblHodnoceníPředmětu[Skóre],tblHodnoceníPředmětu[Třída],Výpočty!$C7,tblHodnoceníPředmětu[Typ],Výpočty!AI$5)*Nastavení!K10,\"\")","v":""},{"$f":"SUM(AC7:AI7)","v":0.1425},{"$f":"SUMIFS(Nastavení!E10:K10,Výpočty!AC7:AI7,\">0\")","v":0.15},{"$f":"IFERROR(AJ7/AK7,\"\")","v":{"v":0.95,"d":"95%"}},4,"A"]
[null,null,{"$f":"IF(Nastavení!C11=\"\",\"\",Nastavení!C11)","v":"Matematika 1"},{"v":0.8,"d":"80%"},{"v":0.8,"d":"80%"},"","","","","","","","","","","","","","","","","","","","","","","",{"$f":"IFERROR(AVERAGEIFS(tblHodnoceníPředmětu[Skóre],tblHodnoceníPředmětu[Třída],Výpočty!$C8,tblHodnoceníPředmětu[Typ],Výpočty!AC$5)*Nastavení!E11,\"\")","v":0.08000000000000002},{"$f":"IFERROR(AVERAGEIFS(tblHodnoceníPředmětu[Skóre],tblHodnoceníPředmětu[Třída],Výpočty!$C8,tblHodnoceníPředmětu[Typ],Výpočty!AD$5)*Nastavení!F11,\"\")","v":""},{"$f":"IFERROR(AVERAGEIFS(tblHodnoceníPředmětu[Skóre],tblHodnoceníPředmětu[Třída],Výpočty!$C8,tblHodnoceníPředmětu[Typ],Výpočty!AE$5)*Nastavení!G11,\"\")","v":""},{"$f":"IFERROR(AVERAGEIFS(tblHodnoceníPředmětu[Skóre],tblHodnoceníPředmětu[Třída],Výpočty!$C8,tblHodnoceníPředmětu[Typ],Výpočty!AF$5)*Nastavení!H11,\"\")","v":""},{"$f":"IFERROR(AVERAGEIFS(tblHodnoceníPředmětu[Skóre],tblHodnoceníPředmětu[Třída],Výpočty!$C8,tblHodnoceníPředmětu[Typ],Výpočty!AG$5)*Nastavení!I11,\"\")","v":""},{"$f":"IFERROR(AVERAGEIFS(tblHodnoceníPředmětu[Skóre],tblHodnoceníPředmětu[Třída],Výpočty!$C8,tblHodnoceníPředmětu[Typ],Výpočty!AH$5)*Nastavení!J11,\"\")","v":""},{"$f":"IFERROR(AVERAGEIFS(tblHodnoceníPředmětu[Skóre],tblHodnoceníPředmětu[Třída],Výpočty!$C8,tblHodnoceníPředmětu[Typ],Výpočty!AI$5)*Nastavení!K11,\"\")","v":""},0.08000000000000002,{"$f":"SUMIFS(Nastavení!E11:K11,Výpočty!AC8:AI8,\">0\")","v":0.1},{"v":0.8000000000000002,"d":"80%"},2.67,"B-"]
[null,null,{"$f":"IF(Nastavení!C12=\"\",\"\",Nastavení!C12)","v":"Matematika 2"},{"v":0.85,"d":"85%"},{"v":0.95,"d":"95%"},"","","","","","","","","","","","","","","","","","","","","","","",{"$f":"IFERROR(AVERAGEIFS(tblHodnoceníPředmětu[Skóre],tblHodnoceníPředmětu[Třída],Výpočty!$C9,tblHodnoceníPředmětu[Typ],Výpočty!AC$5)*Nastavení!E12,\"\")","v":0.1275},{"$f":"IFERROR(AVERAGEIFS(tblHodnoceníPředmětu[Skóre],tblHodnoceníPředmětu[Třída],Výpočty!$C9,tblHodnoceníPředmětu[Typ],Výpočty!AD$5)*Nastavení!F12,\"\")","v":""},{"$f":"IFERROR(AVERAGEIFS(tblHodnoceníPředmětu[Skóre],tblHodnoceníPředmětu[Třída],Výpočty!$C9,tblHodnoceníPředmětu[Typ],Výpočty!AE$5)*Nastavení!G12,\"\")","v":0.095},{"$f":"IFERROR(AVERAGEIFS(tblHodnoceníPředmětu[Skóre],tblHodnoceníPředmětu[Třída],Výpočty!$C9,tblHodnoceníPředmětu[Typ],Výpočty!AF$5)*Nastavení!H12,\"\")","v":""},{"$f":"IFERROR(AVERAGEIFS(tblHodnoceníPředmětu[Skóre],tblHodnoceníPředmětu[Třída],Výpočty!$C9,tblHodnoceníPředmětu[Typ],Výpočty!AG$5)*Nastavení!I12,\"\")","v":""},{"$f":"IFERROR(AVERAGEIFS(tblHodnoceníPředmětu[Skóre],tblHodnoceníPředmětu[Třída],Výpočty!$C9,tblHodnoceníPředmětu[Typ],Výpočty!AH$5)*Nastavení!J12,\"\")","v":""},{"$f":"IFERROR(AVERAGEIFS(tblHodnoceníPředmětu[Skóre],tblHodnoceníPředmětu[Třída],Výpočty!$C9,tblHodnoceníPředmětu[Typ],Výpočty!AI$5)*Nastavení!K12,\"\")","v":""},0.2225,{"$f":"SUMIFS(Nastavení!E12:K12,Výpočty!AC9:AI9,\">0\")","v":0.25},{"v":0.89,"d":"89%"},3.33,"B+"]
[null,null,{"$f":"IF(Nastavení!C13=\"\",\"\",Nastavení!C13)","v":"Pokročilé programování v jazyce Java"},{"v":0.75,"d":"75%"},"","","","","","","","","","","","","","","","","","","","","","","","",{"$f":"IFERROR(AVERAGEIFS(tblHodnoceníPředmětu[Skóre],tblHodnoceníPředmětu[Třída],Výpočty!$C10,tblHodnoceníPředmětu[Typ],Výpočty!AC$5)*Nastavení!E13,\"\")","v":""},{"$f":"IFERROR(AVERAGEIFS(tblHodnoceníPředmětu[Skóre],tblHodnoceníPředmětu[Třída],Výpočty!$C10,tblHodnoceníPředmětu[Typ],Výpočty!AD$5)*Nastavení!F13,\"\")","v":""},{"$f":"IFERROR(AVERAGEIFS(tblHodnoceníPředmětu[Skóre],tblHodnoceníPředmětu[Třída],Výpočty!$C10,tblHodnoceníPředmětu[Typ],Výpočty!AE$5)*Nastavení!G13,\"\")","v":""},{"$f":"IFERROR(AVERAGEIFS(tblHodnoceníPředmětu[Skóre],tblHodnoceníPředmětu[Třída],Výpočty!$C10,tblHodnoceníPředmětu[Typ],Výpočty!AF$5)*Nastavení!H13,\"\")","v":""},{"$f":"IFERROR(AVERAGEIFS(tblHodnoceníPředmětu[Skóre],tblHodnoceníPředmětu[Třída],Výpočty!$C10,tblHodnoceníPředmětu[Typ],Výpočty!AG$5)*Nastavení!I13,\"\")","v":0.15000000000000002},{"$f":"IFERROR(AVERAGEIFS(tblHodnoceníPředmětu[Skóre],tblHodnoceníPředmětu[Třída],Výpočty!$C10,tblHodnoceníPředmětu[Typ],Výpočty!AH$5)*Nastavení!J13,\"\")","v":""},{"$f":"IFERROR(AVERAGEIFS(tblHodnoceníPředmětu[Skóre],tblHodnoceníPředmětu[Třída],Výpočty!$C10,tblHodnoceníPředmětu[Typ],Výpočty!AI$5)*Nastavení!K13,\"\")","v":""},0.15000000000000002,{"$f":"SUMIFS(Nastavení!E13:K13,Výpočty!AC10:AI10,\">0\")","v":0.2},{"v":0.7500000000000001,"d":"75%"},2,"C"]
[null,null,{"$f":"IF(Nastavení!C14=\"\",\"\",Nastavení!C14)","v":"Španělština"},{"v":0.5,"d":"50%"},"","","","","","","","","","","","","","","","","","","","","","","","",{"$f":"IFERROR(AVERAGEIFS(tblHodnoceníPředmětu[Skóre],tblHodnoceníPředmětu[Třída],Výpočty!$C11,tblHodnoceníPředmětu[Typ],Výpočty!AC$5)*Nastavení!E14,\"\")","v":0.05},{"$f":"IFERROR(AVERAGEIFS(tblHodnoceníPředmětu[Skóre],tblHodnoceníPředmětu[Třída],Výpočty!$C11,tblHodnoceníPředmětu[Typ],Výpočty!AD$5)*Nastavení!F14,\"\")","v":""},{"$f":"IFERROR(AVERAGEIFS(tblHodnoceníPředmětu[Skóre],tblHodnoceníPředmětu[Třída],Výpočty!$C11,tblHodnoceníPředmětu[Typ],Výpočty!AE$5)*Nastavení!G14,\"\")","v":""},{"$f":"IFERROR(AVERAGEIFS(tblHodnoceníPředmětu[Skóre],tblHodnoceníPředmětu[Třída],Výpočty!$C11,tblHodnoceníPředmětu[Typ],Výpočty!AF$5)*Nastavení!H14,\"\")","v":""},{"$f":"IFERROR(AVERAGEIFS(tblHodnoceníPředmětu[Skóre],tblHodnoceníPředmětu[Třída],Výpočty!$C11,tblHodnoceníPředmětu[Typ],Výpočty!AG$5)*Nastavení!I14,\"\")","v":""},{"$f":"IFERROR(AVERAGEIFS(tblHodnoceníPředmětu[Skóre],tblHodnoceníPředmětu[Třída],Výpočty!$C11,tblHodnoceníPředmětu[Typ],Výpočty!AH$5)*Nastavení!J14,\"\")","v":""},{"$f":"IFERROR(AVERAGEIFS(tblHodnoceníPředmětu[Skóre],tblHodnoceníPředmětu[Třída],Výpočty!$C11,tblHodnoceníPředmětu[Typ],Výpočty!AI$5)*Nastavení!K14,\"\")","v":""},0.05,{"$f":"SUMIFS(Nastavení!E14:K14,Výpočty!AC11:AI11,\">0\")","v":0.1},{"v":0.5,"d":"50%"},0,"F"]
[null,null,{"$f":"IF(Nastavení!C15=\"\",\"\",Nastavení!C15)","v":"Esej"},{"v":0.95,"d":"95%"},"","","","","","","","","","","","","","","","","","","","","","","","",{"$f":"IFERROR(AVERAGEIFS(tblHodnoceníPředmětu[Skóre],tblHodnoceníPředmětu[Třída],Výpočty!$C12,tblHodnoceníPředmětu[Typ],Výpočty!AC$5)*Nastavení!E15,\"\")","v":""},{"$f":"IFERROR(AVERAGEIFS(tblHodnoceníPředmětu[Skóre],tblHodnoceníPředmětu[Třída],Výpočty!$C12,tblHodnoceníPředmětu[Typ],Výpočty!AD$5)*Nastavení!F15,\"\")","v":0.1425},{"$f":"IFERROR(AVERAGEIFS(tblHodnoceníPředmětu[Skóre],tblHodnoceníPředmětu[Třída],Výpočty!$C12,tblHodnoceníPředmětu[Typ],Výpočty!AE$5)*Nastavení!G15,\"\")","v":""},{"$f":"IFERROR(AVERAGEIFS(tblHodnoceníPředmětu[Skóre],tblHodnoceníPředmětu[Třída],Výpočty!$C12,tblHodnoceníPředmětu[Typ],Výpočty!AF$5)*Nastavení!H15,\"\")","v":""},{"$f":"IFERROR(AVERAGEIFS(tblHodnoceníPředmětu[Skóre],tblHodnoceníPředmětu[Třída],Výpočty!$C12,tblHodnoceníPředmětu[Typ],Výpočty!AG$5)*Nastavení!I15,\"\")","v":""},{"$f":"IFERROR(AVERAGEIFS(tblHodnoceníPředmětu[Skóre],tblHodnoceníPředmětu[Třída],Výpočty!$C12,tblHodnoceníPředmětu[Typ],Výpočty!AH$5)*Nastavení!J15,\"\")","v":""},{"$f":"IFERROR(AVERAGEIFS(tblHodnoceníPředmětu[Skóre],tblHodnoceníPředmětu[Třída],Výpočty!$C12,tblHodnoceníPředmětu[Typ],Výpočty!AI$5)*Nastavení!K15,\"\")","v":""},0.1425,{"$f":"SUMIFS(Nastavení!E15:K15,Výpočty!AC12:AI12,\">0\")","v":0.15},{"v":0.95,"d":"95%"},4,"A"]
[null,null,{"$f":"IF(Nastavení!C16=\"\",\"\",Nastavení!C16)","v":""},"","","","","","","","","","","","","","","","","","","","","","","","","",{"$f":"IFERROR(AVERAGEIFS(tblHodnoceníPředmětu[Skóre],tblHodnoceníPředmětu[Třída],Výpočty!$C13,tblHodnoceníPředmětu[Typ],Výpočty!AC$5)*Nastavení!E16,\"\")","v":""},{"$f":"IFERROR(AVERAGEIFS(tblHodnoceníPředmětu[Skóre],tblHodnoceníPředmětu[Třída],Výpočty!$C13,tblHodnoceníPředmětu[Typ],Výpočty!AD$5)*Nastavení!F16,\"\")","v":""},{"$f":"IFERROR(AVERAGEIFS(tblHodnoceníPředmětu[Skóre],tblHodnoceníPředmětu[Třída],Výpočty!$C13,tblHodnoceníPředmětu[Typ],Výpočty!AE$5)*Nastavení!G16,\"\")","v":""},{"$f":"IFERROR(AVERAGEIFS(tblHodnoceníPředmětu[Skóre],tblHodnoceníPředmětu[Třída],Výpočty!$C13,tblHodnoceníPředmětu[Typ],Výpočty!AF$5)*Nastavení!H16,\"\")","v":""},{"$f":"IFERROR(AVERAGEIFS(tblHodnoceníPředmětu[Skóre],tblHodnoceníPředmětu[Třída],Výpočty!$C13,tblHodnoceníPředmětu[Typ],Výpočty!AG$5)*Nastavení!I16,\"\")","v":""},{"$f":"IFERROR(AVERAGEIFS(tblHodnoceníPředmětu[Skóre],tblHodnoceníPředmětu[Třída],Výpočty!$C13,tblHodnoceníPředmětu[Typ],Výpočty!AH$5)*Nastavení!J16,\"\")","v":""},{"$f":"IFERROR(AVERAGEIFS(tblHodnoceníPředmětu[Skóre],tblHodnoceníPředmětu[Třída],Výpočty!$C13,tblHodnoceníPředmětu[Typ],Výpočty!AI$5)*Nastavení!K16,\"\")","v":""},{"$f":"SUM(AC13:AI13)","v":0},{"$f":"SUMIFS(Nastavení!E16:K16,Výpočty!AC13:AI13,\">0\")","v":0},{"$f":"IFERROR(AJ13/AK13,\"\")","v":""},"",""]
[null,null,{"$f":"IF(Nastavení!C17=\"\",\"\",Nastavení!C17)","v":""},"","","","","","","","","","","","","","","","","","","","","","","","","",{"$f":"IFERROR(AVERAGEIFS(tblHodnoceníPředmětu[Skóre],tblHodnoceníPředmětu[Třída],Výpočty!$C14,tblHodnoceníPředmětu[Typ],Výpočty!AC$5)*Nastavení!E17,\"\")","v":""},{"$f":"IFERROR(AVERAGEIFS(tblHodnoceníPředmětu[Skóre],tblHodnoceníPředmětu[Třída],Výpočty!$C14,tblHodnoceníPředmětu[Typ],Výpočty!AD$5)*Nastavení!F17,\"\")","v":""},{"$f":"IFERROR(AVERAGEIFS(tblHodnoceníPředmětu[Skóre],tblHodnoceníPředmětu[Třída],Výpočty!$C14,tblHodnoceníPředmětu[Typ],Výpočty!AE$5)*Nastavení!G17,\"\")","v":""},{"$f":"IFERROR(AVERAGEIFS(tblHodnoceníPředmětu[Skóre],tblHodnoceníPředmětu[Třída],Výpočty!$C14,tblHodnoceníPředmětu[Typ],Výpočty!AF$5)*Nastavení!H17,\"\")","v":""},{"$f":"IFERROR(AVERAGEIFS(tblHodnoceníPředmětu[Skóre],tblHodnoceníPředmětu[Třída],Výpočty!$C14,tblHodnoceníPředmětu[Typ],Výpočty!AG$5)*Nastavení!I17,\"\")","v":""},{"$f":"IFERROR(AVERAGEIFS(tblHodnoceníPředmětu[Skóre],tblHodnoceníPředmětu[Třída],Výpočty!$C14,tblHodnoceníPředmětu[Typ],Výpočty!AH$5)*Nastavení!J17,\"\")","v":""},{"$f":"IFERROR(AVERAGEIFS(tblHodnoceníPředmětu[Skóre],tblHodnoceníPředmětu[Třída],Výpočty!$C14,tblHodnoceníPředmětu[Typ],Výpočty!AI$5)*Nastavení!K17,\"\")","v":""},0,{"$f":"SUMIFS(Nastavení!E17:K17,Výpočty!AC14:AI14,\">0\")","v":0},"","",""]
[null,null,{"$f":"IF(Nastavení!C18=\"\",\"\",Nastavení!C18)","v":""},"","","","","","","","","","","","","","","","","","","","","","","","","",{"$f":"IFERROR(AVERAGEIFS(tblHodnoceníPředmětu[Skóre],tblHodnoceníPředmětu[Třída],Výpočty!$C15,tblHodnoceníPředmětu[Typ],Výpočty!AC$5)*Nastavení!E18,\"\")","v":""},{"$f":"IFERROR(AVERAGEIFS(tblHodnoceníPředmětu[Skóre],tblHodnoceníPředmětu[Třída],Výpočty!$C15,tblHodnoceníPředmětu[Typ],Výpočty!AD$5)*Nastavení!F18,\"\")","v":""},{"$f":"IFERROR(AVERAGEIFS(tblHodnoceníPředmětu[Skóre],tblHodnoceníPředmětu[Třída],Výpočty!$C15,tblHodnoceníPředmětu[Typ],Výpočty!AE$5)*Nastavení!G18,\"\")","v":""},{"$f":"IFERROR(AVERAGEIFS(tblHodnoceníPředmětu[Skóre],tblHodnoceníPředmětu[Třída],Výpočty!$C15,tblHodnoceníPředmětu[Typ],Výpočty!AF$5)*Nastavení!H18,\"\")","v":""},{"$f":"IFERROR(AVERAGEIFS(tblHodnoceníPředmětu[Skóre],tblHodnoceníPředmětu[Třída],Výpočty!$C15,tblHodnoceníPředmětu[Typ],Výpočty!AG$5)*Nastavení!I18,\"\")","v":""},{"$f":"IFERROR(AVERAGEIFS(tblHodnoceníPředmětu[Skóre],tblHodnoceníPředmětu[Třída],Výpočty!$C15,tblHodnoceníPředmětu[Typ],Výpočty!AH$5)*Nastavení!J18,\"\")","v":""},{"$f":"IFERROR(AVERAGEIFS(tblHodnoceníPředmětu[Skóre],tblHodnoceníPředmětu[Třída],Výpočty!$C15,tblHodnoceníPředmětu[Typ],Výpočty!AI$5)*Nastavení!K18,\"\")","v":""},0,{"$f":"SUMIFS(Nastavení!E18:K18,Výpočty!AC15:AI15,\">0\")","v":0},"","",""]
[null,null,{"$f":"IF(Nastavení!C19=\"\",\"\",Nastavení!C19)","v":""},"","","","","","","","","","","","","","","","","","","","","","","","","",{"$f":"IFERROR(AVERAGEIFS(tblHodnoceníPředmětu[Skóre],tblHodnoceníPředmětu[Třída],Výpočty!$C16,tblHodnoceníPředmětu[Typ],Výpočty!AC$5)*Nastavení!E19,\"\")","v":""},{"$f":"IFERROR(AVERAGEIFS(tblHodnoceníPředmětu[Skóre],tblHodnoceníPředmětu[Třída],Výpočty!$C16,tblHodnoceníPředmětu[Typ],Výpočty!AD$5)*Nastavení!F19,\"\")","v":""},{"$f":"IFERROR(AVERAGEIFS(tblHodnoceníPředmětu[Skóre],tblHodnoceníPředmětu[Třída],Výpočty!$C16,tblHodnoceníPředmětu[Typ],Výpočty!AE$5)*Nastavení!G19,\"\")","v":""},{"$f":"IFERROR(AVERAGEIFS(tblHodnoceníPředmětu[Skóre],tblHodnoceníPředmětu[Třída],Výpočty!$C16,tblHodnoceníPředmětu[Typ],Výpočty!AF$5)*Nastavení!H19,\"\")","v":""},{"$f":"IFERROR(AVERAGEIFS(tblHodnoceníPředmětu[Skóre],tblHodnoceníPředmětu[Třída],Výpočty!$C16,tblHodnoceníPředmětu[Typ],Výpočty!AG$5)*Nastavení!I19,\"\")","v":""},{"$f":"IFERROR(AVERAGEIFS(tblHodnoceníPředmětu[Skóre],tblHodnoceníPředmětu[Třída],Výpočty!$C16,tblHodnoceníPředmětu[Typ],Výpočty!AH$5)*Nastavení!J19,\"\")","v":""},{"$f":"IFERROR(AVERAGEIFS(tblHodnoceníPředmětu[Skóre],tblHodnoceníPředmětu[Třída],Výpočty!$C16,tblHodnoceníPředmětu[Typ],Výpočty!AI$5)*Nastavení!K19,\"\")","v":""},0,{"$f":"SUMIFS(Nastavení!E19:K19,Výpočty!AC16:AI16,\">0\")","v":0},"","",""]
[null,null,{"$f":"IF(Nastavení!C20=\"\",\"\",Nastavení!C20)","v":""},"","","","","","","","","","","","","","","","","","","","","","","","","",{"$f":"IFERROR(AVERAGEIFS(tblHodnoceníPředmětu[Skóre],tblHodnoceníPředmětu[Třída],Výpočty!$C17,tblHodnoceníPředmětu[Typ],Výpočty!AC$5)*Nastavení!E20,\"\")","v":""},{"$f":"IFERROR(AVERAGEIFS(tblHodnoceníPředmětu[Skóre],tblHodnoceníPředmětu[Třída],Výpočty!$C17,tblHodnoceníPředmětu[Typ],Výpočty!AD$5)*Nastavení!F20,\"\")","v":""},{"$f":"IFERROR(AVERAGEIFS(tblHodnoceníPředmětu[Skóre],tblHodnoceníPředmětu[Třída],Výpočty!$C17,tblHodnoceníPředmětu[Typ],Výpočty!AE$5)*Nastavení!G20,\"\")","v":""},{"$f":"IFERROR(AVERAGEIFS(tblHodnoceníPředmětu[Skóre],tblHodnoceníPředmětu[Třída],Výpočty!$C17,tblHodnoceníPředmětu[Typ],Výpočty!AF$5)*Nastavení!H20,\"\")","v":""},{"$f":"IFERROR(AVERAGEIFS(tblHodnoceníPředmětu[Skóre],tblHodnoceníPředmětu[Třída],Výpočty!$C17,tblHodnoceníPředmětu[Typ],Výpočty!AG$5)*Nastavení!I20,\"\")","v":""},{"$f":"IFERROR(AVERAGEIFS(tblHodnoceníPředmětu[Skóre],tblHodnoceníPředmětu[Třída],Výpočty!$C17,tblHodnoceníPředmětu[Typ],Výpočty!AH$5)*Nastavení!J20,\"\")","v":""},{"$f":"IFERROR(AVERAGEIFS(tblHodnoceníPředmětu[Skóre],tblHodnoceníPředmětu[Třída],Výpočty!$C17,tblHodnoceníPředmětu[Typ],Výpočty!AI$5)*Nastavení!K20,\"\")","v":""},0,{"$f":"SUMIFS(Nastavení!E20:K20,Výpočty!AC17:AI17,\">0\")","v":0},"","",""]
[null,null,{"$f":"IF(Nastavení!C21=\"\",\"\",Nastavení!C21)","v":""},"","","","","","","","","","","","","","","","","","","","","","","","","",{"$f":"IFERROR(AVERAGEIFS(tblHodnoceníPředmětu[Skóre],tblHodnoceníPředmětu[Třída],Výpočty!$C18,tblHodnoceníPředmětu[Typ],Výpočty!AC$5)*Nastavení!E21,\"\")","v":""},{"$f":"IFERROR(AVERAGEIFS(tblHodnoceníPředmětu[Skóre],tblHodnoceníPředmětu[Třída],Výpočty!$C18,tblHodnoceníPředmětu[Typ],Výpočty!AD$5)*Nastavení!F21,\"\")","v":""},{"$f":"IFERROR(AVERAGEIFS(tblHodnoceníPředmětu[Skóre],tblHodnoceníPředmětu[Třída],Výpočty!$C18,tblHodnoceníPředmětu[Typ],Výpočty!AE$5)*Nastavení!G21,\"\")","v":""},{"$f":"IFERROR(AVERAGEIFS(tblHodnoceníPředmětu[Skóre],tblHodnoceníPředmětu[Třída],Výpočty!$C18,tblHodnoceníPředmětu[Typ],Výpočty!AF$5)*Nastavení!H21,\"\")","v":""},{"$f":"IFERROR(AVERAGEIFS(tblHodnoceníPředmětu[Skóre],tblHodnoceníPředmětu[Třída],Výpočty!$C18,tblHodnoceníPředmětu[Typ],Výpočty!AG$5)*Nastavení!I21,\"\")","v":""},{"$f":"IFERROR(AVERAGEIFS(tblHodnoceníPředmětu[Skóre],tblHodnoceníPředmětu[Třída],Výpočty!$C18,tblHodnoceníPředmětu[Typ],Výpočty!AH$5)*Nastavení!J21,\"\")","v":""},{"$f":"IFERROR(AVERAGEIFS(tblHodnoceníPředmětu[Skóre],tblHodnoceníPředmětu[Třída],Výpočty!$C18,tblHodnoceníPředmětu[Typ],Výpočty!AI$5)*Nastavení!K21,\"\")","v":""},0,{"$f":"SUMIFS(Nastavení!E21:K21,Výpočty!AC18:AI18,\">0\")","v":0},"","",""]
[null,null,{"$f":"IF(Nastavení!C22=\"\",\"\",Nastavení!C22)","v":""},"","","","","","","","","","","","","","","","","","","","","","","","","",{"$f":"IFERROR(AVERAGEIFS(tblHodnoceníPředmětu[Skóre],tblHodnoceníPředmětu[Třída],Výpočty!$C19,tblHodnoceníPředmětu[Typ],Výpočty!AC$5)*Nastavení!E22,\"\")","v":""},{"$f":"IFERROR(AVERAGEIFS(tblHodnoceníPředmětu[Skóre],tblHodnoceníPředmětu[Třída],Výpočty!$C19,tblHodnoceníPředmětu[Typ],Výpočty!AD$5)*Nastavení!F22,\"\")","v":""},{"$f":"IFERROR(AVERAGEIFS(tblHodnoceníPředmětu[Skóre],tblHodnoceníPředmětu[Třída],Výpočty!$C19,tblHodnoceníPředmětu[Typ],Výpočty!AE$5)*Nastavení!G22,\"\")","v":""},{"$f":"IFERROR(AVERAGEIFS(tblHodnoceníPředmětu[Skóre],tblHodnoceníPředmětu[Třída],Výpočty!$C19,tblHodnoceníPředmětu[Typ],Výpočty!AF$5)*Nastavení!H22,\"\")","v":""},{"$f":"IFERROR(AVERAGEIFS(tblHodnoceníPředmětu[Skóre],tblHodnoceníPředmětu[Třída],Výpočty!$C19,tblHodnoceníPředmětu[Typ],Výpočty!AG$5)*Nastavení!I22,\"\")","v":""},{"$f":"IFERROR(AVERAGEIFS(tblHodnoceníPředmětu[Skóre],tblHodnoceníPředmětu[Třída],Výpočty!$C19,tblHodnoceníPředmětu[Typ],Výpočty!AH$5)*Nastavení!J22,\"\")","v":""},{"$f":"IFERROR(AVERAGEIFS(tblHodnoceníPředmětu[Skóre],tblHodnoceníPředmětu[Třída],Výpočty!$C19,tblHodnoceníPředmětu[Typ],Výpočty!AI$5)*Nastavení!K22,\"\")","v":""},0,{"$f":"SUMIFS(Nastavení!E22:K22,Výpočty!AC19:AI19,\">0\")","v":0},"","",""]
[null,null,{"$f":"IF(Nastavení!C23=\"\",\"\",Nastavení!C23)","v":""},"","","","","","","","","","","","","","","","","","","","","","","","","",{"$f":"IFERROR(AVERAGEIFS(tblHodnoceníPředmětu[Skóre],tblHodnoceníPředmětu[Třída],Výpočty!$C20,tblHodnoceníPředmětu[Typ],Výpočty!AC$5)*Nastavení!E23,\"\")","v":""},{"$f":"IFERROR(AVERAGEIFS(tblHodnoceníPředmětu[Skóre],tblHodnoceníPředmětu[Třída],Výpočty!$C20,tblHodnoceníPředmětu[Typ],Výpočty!AD$5)*Nastavení!F23,\"\")","v":""},{"$f":"IFERROR(AVERAGEIFS(tblHodnoceníPředmětu[Skóre],tblHodnoceníPředmětu[Třída],Výpočty!$C20,tblHodnoceníPředmětu[Typ],Výpočty!AE$5)*Nastavení!G23,\"\")","v":""},{"$f":"IFERROR(AVERAGEIFS(tblHodnoceníPředmětu[Skóre],tblHodnoceníPředmětu[Třída],Výpočty!$C20,tblHodnoceníPředmětu[Typ],Výpočty!AF$5)*Nastavení!H23,\"\")","v":""},{"$f":"IFERROR(AVERAGEIFS(tblHodnoceníPředmětu[Skóre],tblHodnoceníPředmětu[Třída],Výpočty!$C20,tblHodnoceníPředmětu[Typ],Výpočty!AG$5)*Nastavení!I23,\"\")","v":""},{"$f":"IFERROR(AVERAGEIFS(tblHodnoceníPředmětu[Skóre],tblHodnoceníPředmětu[Třída],Výpočty!$C20,tblHodnoceníPředmětu[Typ],Výpočty!AH$5)*Nastavení!J23,\"\")","v":""},{"$f":"IFERROR(AVERAGEIFS(tblHodnoceníPředmětu[Skóre],tblHodnoceníPředmětu[Třída],Výpočty!$C20,tblHodnoceníPředmětu[Typ],Výpočty!AI$5)*Nastavení!K23,\"\")","v":""},0,{"$f":"SUMIFS(Nastavení!E23:K23,Výpočty!AC20:AI20,\">0\")","v":0},"","",""]
[null,null,{"$f":"IF(Nastavení!C24=\"\",\"\",Nastavení!C24)","v":""},"","","","","","","","","","","","","","","","","","","","","","","","","",{"$f":"IFERROR(AVERAGEIFS(tblHodnoceníPředmětu[Skóre],tblHodnoceníPředmětu[Třída],Výpočty!$C21,tblHodnoceníPředmětu[Typ],Výpočty!AC$5)*Nastavení!E24,\"\")","v":""},{"$f":"IFERROR(AVERAGEIFS(tblHodnoceníPředmětu[Skóre],tblHodnoceníPředmětu[Třída],Výpočty!$C21,tblHodnoceníPředmětu[Typ],Výpočty!AD$5)*Nastavení!F24,\"\")","v":""},{"$f":"IFERROR(AVERAGEIFS(tblHodnoceníPředmětu[Skóre],tblHodnoceníPředmětu[Třída],Výpočty!$C21,tblHodnoceníPředmětu[Typ],Výpočty!AE$5)*Nastavení!G24,\"\")","v":""},{"$f":"IFERROR(AVERAGEIFS(tblHodnoceníPředmětu[Skóre],tblHodnoceníPředmětu[Třída],Výpočty!$C21,tblHodnoceníPředmětu[Typ],Výpočty!AF$5)*Nastavení!H24,\"\")","v":""},{"$f":"IFERROR(AVERAGEIFS(tblHodnoceníPředmětu[Skóre],tblHodnoceníPředmětu[Třída],Výpočty!$C21,tblHodnoceníPředmětu[Typ],Výpočty!AG$5)*Nastavení!I24,\"\")","v":""},{"$f":"IFERROR(AVERAGEIFS(tblHodnoceníPředmětu[Skóre],tblHodnoceníPředmětu[Třída],Výpočty!$C21,tblHodnoceníPředmětu[Typ],Výpočty!AH$5)*Nastavení!J24,\"\")","v":""},{"$f":"IFERROR(AVERAGEIFS(tblHodnoceníPředmětu[Skóre],tblHodnoceníPředmětu[Třída],Výpočty!$C21,tblHodnoceníPředmětu[Typ],Výpočty!AI$5)*Nastavení!K24,\"\")","v":""},0,{"$f":"SUMIFS(Nastavení!E24:K24,Výpočty!AC21:AI21,\">0\")","v":0},"","",""]
[null,null,{"$f":"IF(Nastavení!C25=\"\",\"\",Nastavení!C25)","v":""},"","","","","","","","","","","","","","","","","","","","","","","","","",{"$f":"IFERROR(AVERAGEIFS(tblHodnoceníPředmětu[Skóre],tblHodnoceníPředmětu[Třída],Výpočty!$C22,tblHodnoceníPředmětu[Typ],Výpočty!AC$5)*Nastavení!E25,\"\")","v":""},{"$f":"IFERROR(AVERAGEIFS(tblHodnoceníPředmětu[Skóre],tblHodnoceníPředmětu[Třída],Výpočty!$C22,tblHodnoceníPředmětu[Typ],Výpočty!AD$5)*Nastavení!F25,\"\")","v":""},{"$f":"IFERROR(AVERAGEIFS(tblHodnoceníPředmětu[Skóre],tblHodnoceníPředmětu[Třída],Výpočty!$C22,tblHodnoceníPředmětu[Typ],Výpočty!AE$5)*Nastavení!G25,\"\")","v":""},{"$f":"IFERROR(AVERAGEIFS(tblHodnoceníPředmětu[Skóre],tblHodnoceníPředmětu[Třída],Výpočty!$C22,tblHodnoceníPředmětu[Typ],Výpočty!AF$5)*Nastavení!H25,\"\")","v":""},{"$f":"IFERROR(AVERAGEIFS(tblHodnoceníPředmětu[Skóre],tblHodnoceníPředmětu[Třída],Výpočty!$C22,tblHodnoceníPředmětu[Typ],Výpočty!AG$5)*Nastavení!I25,\"\")","v":""},{"$f":"IFERROR(AVERAGEIFS(tblHodnoceníPředmětu[Skóre],tblHodnoceníPředmětu[Třída],Výpočty!$C22,tblHodnoceníPředmětu[Typ],Výpočty!AH$5)*Nastavení!J25,\"\")","v":""},{"$f":"IFERROR(AVERAGEIFS(tblHodnoceníPředmětu[Skóre],tblHodnoceníPředmětu[Třída],Výpočty!$C22,tblHodnoceníPředmětu[Typ],Výpočty!AI$5)*Nastavení!K25,\"\")","v":""},0,{"$f":"SUMIFS(Nastavení!E25:K25,Výpočty!AC22:AI22,\">0\")","v":0},"","",""]
[null,null,{"$f":"IF(Nastavení!C26=\"\",\"\",Nastavení!C26)","v":""},"","","","","","","","","","","","","","","","","","","","","","","","","",{"$f":"IFERROR(AVERAGEIFS(tblHodnoceníPředmětu[Skóre],tblHodnoceníPředmětu[Třída],Výpočty!$C23,tblHodnoceníPředmětu[Typ],Výpočty!AC$5)*Nastavení!E26,\"\")","v":""},{"$f":"IFERROR(AVERAGEIFS(tblHodnoceníPředmětu[Skóre],tblHodnoceníPředmětu[Třída],Výpočty!$C23,tblHodnoceníPředmětu[Typ],Výpočty!AD$5)*Nastavení!F26,\"\")","v":""},{"$f":"IFERROR(AVERAGEIFS(tblHodnoceníPředmětu[Skóre],tblHodnoceníPředmětu[Třída],Výpočty!$C23,tblHodnoceníPředmětu[Typ],Výpočty!AE$5)*Nastavení!G26,\"\")","v":""},{"$f":"IFERROR(AVERAGEIFS(tblHodnoceníPředmětu[Skóre],tblHodnoceníPředmětu[Třída],Výpočty!$C23,tblHodnoceníPředmětu[Typ],Výpočty!AF$5)*Nastavení!H26,\"\")","v":""},{"$f":"IFERROR(AVERAGEIFS(tblHodnoceníPředmětu[Skóre],tblHodnoceníPředmětu[Třída],Výpočty!$C23,tblHodnoceníPředmětu[Typ],Výpočty!AG$5)*Nastavení!I26,\"\")","v":""},{"$f":"IFERROR(AVERAGEIFS(tblHodnoceníPředmětu[Skóre],tblHodnoceníPředmětu[Třída],Výpočty!$C23,tblHodnoceníPředmětu[Typ],Výpočty!AH$5)*Nastavení!J26,\"\")","v":""},{"$f":"IFERROR(AVERAGEIFS(tblHodnoceníPředmětu[Skóre],tblHodnoceníPředmětu[Třída],Výpočty!$C23,tblHodnoceníPředmětu[Typ],Výpočty!AI$5)*Nastavení!K26,\"\")","v":""},0,{"$f":"SUMIFS(Nastavení!E26:K26,Výpočty!AC23:AI23,\">0\")","v":0},"","",""]
[null,null,{"$f":"IF(Nastavení!C27=\"\",\"\",Nastavení!C27)","v":""},"","","","","","","","","","","","","","","","","","","","","","","","","",{"$f":"IFERROR(AVERAGEIFS(tblHodnoceníPředmětu[Skóre],tblHodnoceníPředmětu[Třída],Výpočty!$C24,tblHodnoceníPředmětu[Typ],Výpočty!AC$5)*Nastavení!E27,\"\")","v":""},{"$f":"IFERROR(AVERAGEIFS(tblHodnoceníPředmětu[Skóre],tblHodnoceníPředmětu[Třída],Výpočty!$C24,tblHodnoceníPředmětu[Typ],Výpočty!AD$5)*Nastavení!F27,\"\")","v":""},{"$f":"IFERROR(AVERAGEIFS(tblHodnoceníPředmětu[Skóre],tblHodnoceníPředmětu[Třída],Výpočty!$C24,tblHodnoceníPředmětu[Typ],Výpočty!AE$5)*Nastavení!G27,\"\")","v":""},{"$f":"IFERROR(AVERAGEIFS(tblHodnoceníPředmětu[Skóre],tblHodnoceníPředmětu[Třída],Výpočty!$C24,tblHodnoceníPředmětu[Typ],Výpočty!AF$5)*Nastavení!H27,\"\")","v":""},{"$f":"IFERROR(AVERAGEIFS(tblHodnoceníPředmětu[Skóre],tblHodnoceníPředmětu[Třída],Výpočty!$C24,tblHodnoceníPředmětu[Typ],Výpočty!AG$5)*Nastavení!I27,\"\")","v":""},{"$f":"IFERROR(AVERAGEIFS(tblHodnoceníPředmětu[Skóre],tblHodnoceníPředmětu[Třída],Výpočty!$C24,tblHodnoceníPředmětu[Typ],Výpočty!AH$5)*Nastavení!J27,\"\")","v":""},{"$f":"IFERROR(AVERAGEIFS(tblHodnoceníPředmětu[Skóre],tblHodnoceníPředmětu[Třída],Výpočty!$C24,tblHodnoceníPředmětu[Typ],Výpočty!AI$5)*Nastavení!K27,\"\")","v":""},0,{"$f":"SUMIFS(Nastavení!E27:K27,Výpočty!AC24:AI24,\">0\")","v":0},"","",""]
[null,null,{"$f":"IF(Nastavení!C28=\"\",\"\",Nastavení!C28)","v":""},"","","","","","","","","","","","","","","","","","","","","","","","","",{"$f":"IFERROR(AVERAGEIFS(tblHodnoceníPředmětu[Skóre],tblHodnoceníPředmětu[Třída],Výpočty!$C25,tblHodnoceníPředmětu[Typ],Výpočty!AC$5)*Nastavení!E28,\"\")","v":""},{"$f":"IFERROR(AVERAGEIFS(tblHodnoceníPředmětu[Skóre],tblHodnoceníPředmětu[Třída],Výpočty!$C25,tblHodnoceníPředmětu[Typ],Výpočty!AD$5)*Nastavení!F28,\"\")","v":""},{"$f":"IFERROR(AVERAGEIFS(tblHodnoceníPředmětu[Skóre],tblHodnoceníPředmětu[Třída],Výpočty!$C25,tblHodnoceníPředmětu[Typ],Výpočty!AE$5)*Nastavení!G28,\"\")","v":""},{"$f":"IFERROR(AVERAGEIFS(tblHodnoceníPředmětu[Skóre],tblHodnoceníPředmětu[Třída],Výpočty!$C25,tblHodnoceníPředmětu[Typ],Výpočty!AF$5)*Nastavení!H28,\"\")","v":""},{"$f":"IFERROR(AVERAGEIFS(tblHodnoceníPředmětu[Skóre],tblHodnoceníPředmětu[Třída],Výpočty!$C25,tblHodnoceníPředmětu[Typ],Výpočty!AG$5)*Nastavení!I28,\"\")","v":""},{"$f":"IFERROR(AVERAGEIFS(tblHodnoceníPředmětu[Skóre],tblHodnoceníPředmětu[Třída],Výpočty!$C25,tblHodnoceníPředmětu[Typ],Výpočty!AH$5)*Nastavení!J28,\"\")","v":""},{"$f":"IFERROR(AVERAGEIFS(tblHodnoceníPředmětu[Skóre],tblHodnoceníPředmětu[Třída],Výpočty!$C25,tblHodnoceníPředmětu[Typ],Výpočty!AI$5)*Nastavení!K28,\"\")","v":""},0,{"$f":"SUMIFS(Nastavení!E28:K28,Výpočty!AC25:AI25,\">0\")","v":0},"","",""]
[null,null,{"$f":"IF(Nastavení!C29=\"\",\"\",Nastavení!C29)","v":""},"","","","","","","","","","","","","","","","","","","","","","","","","",{"$f":"IFERROR(AVERAGEIFS(tblHodnoceníPředmětu[Skóre],tblHodnoceníPředmětu[Třída],Výpočty!$C26,tblHodnoceníPředmětu[Typ],Výpočty!AC$5)*Nastavení!E29,\"\")","v":""},{"$f":"IFERROR(AVERAGEIFS(tblHodnoceníPředmětu[Skóre],tblHodnoceníPředmětu[Třída],Výpočty!$C26,tblHodnoceníPředmětu[Typ],Výpočty!AD$5)*Nastavení!F29,\"\")","v":""},{"$f":"IFERROR(AVERAGEIFS(tblHodnoceníPředmětu[Skóre],tblHodnoceníPředmětu[Třída],Výpočty!$C26,tblHodnoceníPředmětu[Typ],Výpočty!AE$5)*Nastavení!G29,\"\")","v":""},{"$f":"IFERROR(AVERAGEIFS(tblHodnoceníPředmětu[Skóre],tblHodnoceníPředmětu[Třída],Výpočty!$C26,tblHodnoceníPředmětu[Typ],Výpočty!AF$5)*Nastavení!H29,\"\")","v":""},{"$f":"IFERROR(AVERAGEIFS(tblHodnoceníPředmětu[Skóre],tblHodnoceníPředmětu[Třída],Výpočty!$C26,tblHodnoceníPředmětu[Typ],Výpočty!AG$5)*Nastavení!I29,\"\")","v":""},{"$f":"IFERROR(AVERAGEIFS(tblHodnoceníPředmětu[Skóre],tblHodnoceníPředmětu[Třída],Výpočty!$C26,tblHodnoceníPředmětu[Typ],Výpočty!AH$5)*Nastavení!J29,\"\")","v":""},{"$f":"IFERROR(AVERAGEIFS(tblHodnoceníPředmětu[Skóre],tblHodnoceníPředmětu[Třída],Výpočty!$C26,tblHodnoceníPředmětu[Typ],Výpočty!AI$5)*Nastavení!K29,\"\")","v":""},0,{"$f":"SUMIFS(Nastavení!E29:K29,Výpočty!AC26:AI26,\">0\")","v":0},"","",""]
[null,null,{"$f":"IF(Nastavení!C30=\"\",\"\",Nastavení!C30)","v":""},"","","","","","","","","","","","","","","","","","","","","","","","","",{"$f":"IFERROR(AVERAGEIFS(tblHodnoceníPředmětu[Skóre],tblHodnoceníPředmětu[Třída],Výpočty!$C27,tblHodnoceníPředmětu[Typ],Výpočty!AC$5)*Nastavení!E30,\"\")","v":""},{"$f":"IFERROR(AVERAGEIFS(tblHodnoceníPředmětu[Skóre],tblHodnoceníPředmětu[Třída],Výpočty!$C27,tblHodnoceníPředmětu[Typ],Výpočty!AD$5)*Nastavení!F30,\"\")","v":""},{"$f":"IFERROR(AVERAGEIFS(tblHodnoceníPředmětu[Skóre],tblHodnoceníPředmětu[Třída],Výpočty!$C27,tblHodnoceníPředmětu[Typ],Výpočty!AE$5)*Nastavení!G30,\"\")","v":""},{"$f":"IFERROR(AVERAGEIFS(tblHodnoceníPředmětu[Skóre],tblHodnoceníPředmětu[Třída],Výpočty!$C27,tblHodnoceníPředmětu[Typ],Výpočty!AF$5)*Nastavení!H30,\"\")","v":""},{"$f":"IFERROR(AVERAGEIFS(tblHodnoceníPředmětu[Skóre],tblHodnoceníPředmětu[Třída],Výpočty!$C27,tblHodnoceníPředmětu[Typ],Výpočty!AG$5)*Nastavení!I30,\"\")","v":""},{"$f":"IFERROR(AVERAGEIFS(tblHodnoceníPředmětu[Skóre],tblHodnoceníPředmětu[Třída],Výpočty!$C27,tblHodnoceníPředmětu[Typ],Výpočty!AH$5)*Nastavení!J30,\"\")","v":""},{"$f":"IFERROR(AVERAGEIFS(tblHodnoceníPředmětu[Skóre],tblHodnoceníPředmětu[Třída],Výpočty!$C27,tblHodnoceníPředmětu[Typ],Výpočty!AI$5)*Nastavení!K30,\"\")","v":""},0,{"$f":"SUMIFS(Nastavení!E30:K30,Výpočty!AC27:AI27,\">0\")","v":0},"","",""]
[null,null,{"$f":"IF(Nastavení!C31=\"\",\"\",Nastavení!C31)","v":""},"","","","","","","","","","","","","","","","","","","","","","","","","",{"$f":"IFERROR(AVERAGEIFS(tblHodnoceníPředmětu[Skóre],tblHodnoceníPředmětu[Třída],Výpočty!$C28,tblHodnoceníPředmětu[Typ],Výpočty!AC$5)*Nastavení!E31,\"\")","v":""},{"$f":"IFERROR(AVERAGEIFS(tblHodnoceníPředmětu[Skóre],tblHodnoceníPředmětu[Třída],Výpočty!$C28,tblHodnoceníPředmětu[Typ],Výpočty!AD$5)*Nastavení!F31,\"\")","v":""},{"$f":"IFERROR(AVERAGEIFS(tblHodnoceníPředmětu[Skóre],tblHodnoceníPředmětu[Třída],Výpočty!$C28,tblHodnoceníPředmětu[Typ],Výpočty!AE$5)*Nastavení!G31,\"\")","v":""},{"$f":"IFERROR(AVERAGEIFS(tblHodnoceníPředmětu[Skóre],tblHodnoceníPředmětu[Třída],Výpočty!$C28,tblHodnoceníPředmětu[Typ],Výpočty!AF$5)*Nastavení!H31,\"\")","v":""},{"$f":"IFERROR(AVERAGEIFS(tblHodnoceníPředmětu[Skóre],tblHodnoceníPředmětu[Třída],Výpočty!$C28,tblHodnoceníPředmětu[Typ],Výpočty!AG$5)*Nastavení!I31,\"\")","v":""},{"$f":"IFERROR(AVERAGEIFS(tblHodnoceníPředmětu[Skóre],tblHodnoceníPředmětu[Třída],Výpočty!$C28,tblHodnoceníPředmětu[Typ],Výpočty!AH$5)*Nastavení!J31,\"\")","v":""},{"$f":"IFERROR(AVERAGEIFS(tblHodnoceníPředmětu[Skóre],tblHodnoceníPředmětu[Třída],Výpočty!$C28,tblHodnoceníPředmětu[Typ],Výpočty!AI$5)*Nastavení!K31,\"\")","v":""},0,{"$f":"SUMIFS(Nastavení!E31:K31,Výpočty!AC28:AI28,\">0\")","v":0},"","",""]
[null,null,{"$f":"IF(Nastavení!C32=\"\",\"\",Nastavení!C32)","v":""},"","","","","","","","","","","","","","","","","","","","","","","","","",{"$f":"IFERROR(AVERAGEIFS(tblHodnoceníPředmětu[Skóre],tblHodnoceníPředmětu[Třída],Výpočty!$C29,tblHodnoceníPředmětu[Typ],Výpočty!AC$5)*Nastavení!E32,\"\")","v":""},{"$f":"IFERROR(AVERAGEIFS(tblHodnoceníPředmětu[Skóre],tblHodnoceníPředmětu[Třída],Výpočty!$C29,tblHodnoceníPředmětu[Typ],Výpočty!AD$5)*Nastavení!F32,\"\")","v":""},{"$f":"IFERROR(AVERAGEIFS(tblHodnoceníPředmětu[Skóre],tblHodnoceníPředmětu[Třída],Výpočty!$C29,tblHodnoceníPředmětu[Typ],Výpočty!AE$5)*Nastavení!G32,\"\")","v":""},{"$f":"IFERROR(AVERAGEIFS(tblHodnoceníPředmětu[Skóre],tblHodnoceníPředmětu[Třída],Výpočty!$C29,tblHodnoceníPředmětu[Typ],Výpočty!AF$5)*Nastavení!H32,\"\")","v":""},{"$f":"IFERROR(AVERAGEIFS(tblHodnoceníPředmětu[Skóre],tblHodnoceníPředmětu[Třída],Výpočty!$C29,tblHodnoceníPředmětu[Typ],Výpočty!AG$5)*Nastavení!I32,\"\")","v":""},{"$f":"IFERROR(AVERAGEIFS(tblHodnoceníPředmětu[Skóre],tblHodnoceníPředmětu[Třída],Výpočty!$C29,tblHodnoceníPředmětu[Typ],Výpočty!AH$5)*Nastavení!J32,\"\")","v":""},{"$f":"IFERROR(AVERAGEIFS(tblHodnoceníPředmětu[Skóre],tblHodnoceníPředmětu[Třída],Výpočty!$C29,tblHodnoceníPředmětu[Typ],Výpočty!AI$5)*Nastavení!K32,\"\")","v":""},0,{"$f":"SUMIFS(Nastavení!E32:K32,Výpočty!AC29:AI29,\">0\")","v":0},"","",""]
[null,null,{"$f":"IF(Nastavení!C33=\"\",\"\",Nastavení!C33)","v":""},"","","","","","","","","","","","","","","","","","","","","","","","","",{"$f":"IFERROR(AVERAGEIFS(tblHodnoceníPředmětu[Skóre],tblHodnoceníPředmětu[Třída],Výpočty!$C30,tblHodnoceníPředmětu[Typ],Výpočty!AC$5)*Nastavení!E33,\"\")","v":""},{"$f":"IFERROR(AVERAGEIFS(tblHodnoceníPředmětu[Skóre],tblHodnoceníPředmětu[Třída],Výpočty!$C30,tblHodnoceníPředmětu[Typ],Výpočty!AD$5)*Nastavení!F33,\"\")","v":""},{"$f":"IFERROR(AVERAGEIFS(tblHodnoceníPředmětu[Skóre],tblHodnoceníPředmětu[Třída],Výpočty!$C30,tblHodnoceníPředmětu[Typ],Výpočty!AE$5)*Nastavení!G33,\"\")","v":""},{"$f":"IFERROR(AVERAGEIFS(tblHodnoceníPředmětu[Skóre],tblHodnoceníPředmětu[Třída],Výpočty!$C30,tblHodnoceníPředmětu[Typ],Výpočty!AF$5)*Nastavení!H33,\"\")","v":""},{"$f":"IFERROR(AVERAGEIFS(tblHodnoceníPředmětu[Skóre],tblHodnoceníPředmětu[Třída],Výpočty!$C30,tblHodnoceníPředmětu[Typ],Výpočty!AG$5)*Nastavení!I33,\"\")","v":""},{"$f":"IFERROR(AVERAGEIFS(tblHodnoceníPředmětu[Skóre],tblHodnoceníPředmětu[Třída],Výpočty!$C30,tblHodnoceníPředmětu[Typ],Výpočty!AH$5)*Nastavení!J33,\"\")","v":""},{"$f":"IFERROR(AVERAGEIFS(tblHodnoceníPředmětu[Skóre],tblHodnoceníPředmětu[Třída],Výpočty!$C30,tblHodnoceníPředmětu[Typ],Výpočty!AI$5)*Nastavení!K33,\"\")","v":""},0,{"$f":"SUMIFS(Nastavení!E33:K33,Výpočty!AC30:AI30,\">0\")","v":0},"","",""]
[]
[]
[null,1,{"$f":"'Sledování skóre'!C4&COUNTIF('Sledování skóre'!$C$4:C4,'Sledování skóre'!C4)","v":"Moderní francouzština1"}]
[null,2,{"$f":"'Sledování skóre'!C5&COUNTIF('Sledování skóre'!$C$4:C5,'Sledování skóre'!C5)","v":"Pokročilé programování v jazyce Java1"}]
[null,3,{"$f":"'Sledování skóre'!C6&COUNTIF('Sledování skóre'!$C$4:C6,'Sledování skóre'!C6)","v":"Španělština1"}]
[null,4,{"$f":"'Sledování skóre'!C7&COUNTIF('Sledování skóre'!$C$4:C7,'Sledování skóre'!C7)","v":"Teoretická fyzika1"}]
[null,5,{"$f":"'Sledování skóre'!C8&COUNTIF('Sledování skóre'!$C$4:C8,'Sledování skóre'!C8)","v":"Moderní francouzština2"}]
[null,6,{"$f":"'Sledování skóre'!C9&COUNTIF('Sledování skóre'!$C$4:C9,'Sledování skóre'!C9)","v":"Moderní francouzština3"}]
[null,7,{"$f":"'Sledování skóre'!C10&COUNTIF('Sledování skóre'!$C$4:C10,'Sledování skóre'!C10)","v":"Esej1"}]
[null,8,{"$f":"'Sledování skóre'!C11&COUNTIF('Sledování skóre'!$C$4:C11,'Sledování skóre'!C11)","v":"Matematika 11"}]
[null,9,{"$f":"'Sledování skóre'!C12&COUNTIF('Sledování skóre'!$C$4:C12,'Sledování skóre'!C12)","v":"Matematika 21"}]
[null,10,{"$f":"'Sledování skóre'!C13&COUNTIF('Sledování skóre'!$C$4:C14,'Sledování skóre'!C13)","v":"Matematika 12"}]
[null,11,{"$f":"'Sledování skóre'!C14&COUNTIF('Sledování skóre'!$C$4:C14,'Sledování skóre'!C14)","v":"Matematika 22"}]
[null,12,{"$f":"'Sledování skóre'!C15&COUNTIF('Sledování skóre'!$C$4:C15,'Sledování skóre'!C15)","v":"0"}]
[null,13,{"$f":"'Sledování skóre'!C16&COUNTIF('Sledování skóre'!$C$4:C16,'Sledování skóre'!C16)","v":"0"}]
[null,14,{"$f":"'Sledování skóre'!C17&COUNTIF('Sledování skóre'!$C$4:C17,'Sledování skóre'!C17)","v":"0"}]
[null,15,{"$f":"'Sledování skóre'!C18&COUNTIF('Sledování skóre'!$C$4:C18,'Sledování skóre'!C18)","v":"0"}]
[null,16,{"$f":"'Sledování skóre'!C19&COUNTIF('Sledování skóre'!$C$4:C19,'Sledování skóre'!C19)","v":"0"}]
[null,17,{"$f":"'Sledování skóre'!C20&COUNTIF('Sledování skóre'!$C$4:C20,'Sledování skóre'!C20)","v":"0"}]
[null,18,{"$f":"'Sledování skóre'!C21&COUNTIF('Sledování skóre'!$C$4:C21,'Sledování skóre'!C21)","v":"0"}]
[null,19,{"$f":"'Sledování skóre'!C22&COUNTIF('Sledování skóre'!$C$4:C22,'Sledování skóre'!C22)","v":"0"}]
[null,20,{"$f":"'Sledování skóre'!C23&COUNTIF('Sledování skóre'!$C$4:C23,'Sledování skóre'!C23)","v":"0"}]
[null,21,{"$f":"'Sledování skóre'!C24&COUNTIF('Sledování skóre'!$C$4:C24,'Sledování skóre'!C24)","v":"0"}]
[null,22,{"$f":"'Sledování skóre'!C25&COUNTIF('Sledování skóre'!$C$4:C25,'Sledování skóre'!C25)","v":"0"}]
[null,23,{"$f":"'Sledování skóre'!C26&COUNTIF('Sledování skóre'!$C$4:C26,'Sledování skóre'!C26)","v":"0"}]
[null,24,{"$f":"'Sledování skóre'!C27&COUNTIF('Sledování skóre'!$C$4:C27,'Sledování skóre'!C27)","v":"0"}]
[null,25,{"$f":"'Sledování skóre'!C28&COUNTIF('Sledování skóre'!$C$4:C28,'Sledování skóre'!C28)","v":"0"}]
[null,26,{"$f":"'Sledování skóre'!C29&COUNTIF('Sledování skóre'!$C$4:C29,'Sledování skóre'!C29)","v":"0"}]
[null,27,{"$f":"'Sledování skóre'!C30&COUNTIF('Sledování skóre'!$C$4:C30,'Sledování skóre'!C30)","v":"0"}]
[null,28,{"$f":"'Sledování skóre'!C31&COUNTIF('Sledování skóre'!$C$4:C31,'Sledování skóre'!C31)","v":"0"}]
[null,29,{"$f":"'Sledování skóre'!C32&COUNTIF('Sledování skóre'!$C$4:C32,'Sledování skóre'!C32)","v":"0"}]
[null,30,{"$f":"'Sledování skóre'!C33&COUNTIF('Sledování skóre'!$C$4:C33,'Sledování skóre'!C33)","v":"0"}]
[null,31,{"$f":"'Sledování skóre'!C34&COUNTIF('Sledování skóre'!$C$4:C34,'Sledování skóre'!C34)","v":"0"}]
[null,32,{"$f":"'Sledování skóre'!C35&COUNTIF('Sledování skóre'!$C$4:C35,'Sledování skóre'!C35)","v":"0"}]
[null,33,{"$f":"'Sledování skóre'!C36&COUNTIF('Sledování skóre'!$C$4:C36,'Sledování skóre'!C36)","v":"0"}]
[null,34,{"$f":"'Sledování skóre'!C37&COUNTIF('Sledování skóre'!$C$4:C37,'Sledování skóre'!C37)","v":"0"}]
[null,35,{"$f":"'Sledování skóre'!C38&COUNTIF('Sledování skóre'!$C$4:C38,'Sledování skóre'!C38)","v":"0"}]
[null,36,{"$f":"'Sledování skóre'!C39&COUNTIF('Sledování skóre'!$C$4:C39,'Sledování skóre'!C39)","v":"0"}]
[null,37,{"$f":"'Sledování skóre'!C40&COUNTIF('Sledování skóre'!$C$4:C40,'Sledování skóre'!C40)","v":"0"}]
[null,38,{"$f":"'Sledování skóre'!C41&COUNTIF('Sledování skóre'!$C$4:C41,'Sledování skóre'!C41)","v":"0"}]
[null,39,{"$f":"'Sledování skóre'!C42&COUNTIF('Sledování skóre'!$C$4:C42,'Sledování skóre'!C42)","v":"0"}]
[null,40,{"$f":"'Sledování skóre'!C43&COUNTIF('Sledování skóre'!$C$4:C43,'Sledování skóre'!C43)","v":"0"}]
[null,41,{"$f":"'Sledování skóre'!C44&COUNTIF('Sledování skóre'!$C$4:C44,'Sledování skóre'!C44)","v":"0"}]
[null,42,{"$f":"'Sledování skóre'!C45&COUNTIF('Sledování skóre'!$C$4:C45,'Sledování skóre'!C45)","v":"0"}]
[null,43,{"$f":"'Sledování skóre'!C46&COUNTIF('Sledování skóre'!$C$4:C46,'Sledování skóre'!C46)","v":"0"}]
[null,44,{"$f":"'Sledování skóre'!C47&COUNTIF('Sledování skóre'!$C$4:C47,'Sledování skóre'!C47)","v":"0"}]
[null,45,{"$f":"'Sledování skóre'!C48&COUNTIF('Sledování skóre'!$C$4:C48,'Sledování skóre'!C48)","v":"0"}]
[null,46,{"$f":"'Sledování skóre'!C49&COUNTIF('Sledování skóre'!$C$4:C49,'Sledování skóre'!C49)","v":"0"}]
[null,47,{"$f":"'Sledování skóre'!C50&COUNTIF('Sledování skóre'!$C$4:C50,'Sledování skóre'!C50)","v":"0"}]
[null,48,{"$f":"'Sledování skóre'!C51&COUNTIF('Sledování skóre'!$C$4:C51,'Sledování skóre'!C51)","v":"0"}]
[null,49,{"$f":"'Sledování skóre'!C52&COUNTIF('Sledování skóre'!$C$4:C52,'Sledování skóre'!C52)","v":"0"}]
[null,50,{"$f":"'Sledování skóre'!C53&COUNTIF('Sledování skóre'!$C$4:C53,'Sledování skóre'!C53)","v":"0"}]
[null,51,{"$f":"'Sledování skóre'!C54&COUNTIF('Sledování skóre'!$C$4:C54,'Sledování skóre'!C54)","v":"0"}]
[null,52,{"$f":"'Sledování skóre'!C55&COUNTIF('Sledování skóre'!$C$4:C55,'Sledování skóre'!C55)","v":"0"}]
[null,53,{"$f":"'Sledování skóre'!C56&COUNTIF('Sledování skóre'!$C$4:C56,'Sledování skóre'!C56)","v":"0"}]
[null,54,{"$f":"'Sledování skóre'!C57&COUNTIF('Sledování skóre'!$C$4:C57,'Sledování skóre'!C57)","v":"0"}]
[null,55,{"$f":"'Sledování skóre'!C58&COUNTIF('Sledování skóre'!$C$4:C58,'Sledování skóre'!C58)","v":"0"}]
[null,56,{"$f":"'Sledování skóre'!C59&COUNTIF('Sledování skóre'!$C$4:C59,'Sledování skóre'!C59)","v":"0"}]
[null,57,{"$f":"'Sledování skóre'!C60&COUNTIF('Sledování skóre'!$C$4:C60,'Sledování skóre'!C60)","v":"0"}]
[null,58,{"$f":"'Sledování skóre'!C61&COUNTIF('Sledování skóre'!$C$4:C61,'Sledování skóre'!C61)","v":"0"}]
[null,59,{"$f":"'Sledování skóre'!C62&COUNTIF('Sledování skóre'!$C$4:C62,'Sledování skóre'!C62)","v":"0"}]
[null,60,{"$f":"'Sledování skóre'!C63&COUNTIF('Sledování skóre'!$C$4:C63,'Sledování skóre'!C63)","v":"0"}]
[null,61,{"$f":"'Sledování skóre'!C64&COUNTIF('Sledování skóre'!$C$4:C64,'Sledování skóre'!C64)","v":"0"}]
[null,62,{"$f":"'Sledování skóre'!C65&COUNTIF('Sledování skóre'!$C$4:C65,'Sledování skóre'!C65)","v":"0"}]
[null,63,{"$f":"'Sledování skóre'!C66&COUNTIF('Sledování skóre'!$C$4:C66,'Sledování skóre'!C66)","v":"0"}]
[null,64,{"$f":"'Sledování skóre'!C67&COUNTIF('Sledování skóre'!$C$4:C67,'Sledování skóre'!C67)","v":"0"}]
[null,65,{"$f":"'Sledování skóre'!C68&COUNTIF('Sledování skóre'!$C$4:C68,'Sledování skóre'!C68)","v":"0"}]
[null,66,{"$f":"'Sledování skóre'!C69&COUNTIF('Sledování skóre'!$C$4:C69,'Sledování skóre'!C69)","v":"0"}]
[null,67,{"$f":"'Sledování skóre'!C70&COUNTIF('Sledování skóre'!$C$4:C70,'Sledování skóre'!C70)","v":"0"}]
[null,68,{"$f":"'Sledování skóre'!C71&COUNTIF('Sledování skóre'!$C$4:C71,'Sledování skóre'!C71)","v":"0"}]
[null,69,{"$f":"'Sledování skóre'!C72&COUNTIF('Sledování skóre'!$C$4:C72,'Sledování skóre'!C72)","v":"0"}]
[null,70,{"$f":"'Sledování skóre'!C73&COUNTIF('Sledování skóre'!$C$4:C73,'Sledování skóre'!C73)","v":"0"}]
[null,71,{"$f":"'Sledování skóre'!C74&COUNTIF('Sledování skóre'!$C$4:C74,'Sledování skóre'!C74)","v":"0"}]
[null,72,{"$f":"'Sledování skóre'!C75&COUNTIF('Sledování skóre'!$C$4:C75,'Sledování skóre'!C75)","v":"0"}]
[null,73,{"$f":"'Sledování skóre'!C76&COUNTIF('Sledování skóre'!$C$4:C76,'Sledování skóre'!C76)","v":"0"}]
[null,74,{"$f":"'Sledování skóre'!C77&COUNTIF('Sledování skóre'!$C$4:C77,'Sledování skóre'!C77)","v":"0"}]
[null,75,{"$f":"'Sledování skóre'!C78&COUNTIF('Sledování skóre'!$C$4:C78,'Sledování skóre'!C78)","v":"0"}]
[null,76,{"$f":"'Sledování skóre'!C79&COUNTIF('Sledování skóre'!$C$4:C79,'Sledování skóre'!C79)","v":"0"}]
[null,77,{"$f":"'Sledování skóre'!C80&COUNTIF('Sledování skóre'!$C$4:C80,'Sledování skóre'!C80)","v":"0"}]
[null,78,{"$f":"'Sledování skóre'!C81&COUNTIF('Sledování skóre'!$C$4:C81,'Sledování skóre'!C81)","v":"0"}]
[null,79,{"$f":"'Sledování skóre'!C82&COUNTIF('Sledování skóre'!$C$4:C82,'Sledování skóre'!C82)","v":"0"}]
[null,80,{"$f":"'Sledování skóre'!C83&COUNTIF('Sledování skóre'!$C$4:C83,'Sledování skóre'!C83)","v":"0"}]
[null,81,{"$f":"'Sledování skóre'!C84&COUNTIF('Sledování skóre'!$C$4:C84,'Sledování skóre'!C84)","v":"0"}]
[null,82,{"$f":"'Sledování skóre'!C85&COUNTIF('Sledování skóre'!$C$4:C85,'Sledování skóre'!C85)","v":"0"}]
[null,83,{"$f":"'Sledování skóre'!C86&COUNTIF('Sledování skóre'!$C$4:C86,'Sledování skóre'!C86)","v":"0"}]
[null,84,{"$f":"'Sledování skóre'!C87&COUNTIF('Sledování skóre'!$C$4:C87,'Sledování skóre'!C87)","v":"0"}]
[null,85,{"$f":"'Sledování skóre'!C88&COUNTIF('Sledování skóre'!$C$4:C88,'Sledování skóre'!C88)","v":"0"}]
[null,86,{"$f":"'Sledování skóre'!C89&COUNTIF('Sledování skóre'!$C$4:C89,'Sledování skóre'!C89)","v":"0"}]
[null,87,{"$f":"'Sledování skóre'!C90&COUNTIF('Sledování skóre'!$C$4:C90,'Sledování skóre'!C90)","v":"0"}]
[null,88,{"$f":"'Sledování skóre'!C91&COUNTIF('Sledování skóre'!$C$4:C91,'Sledování skóre'!C91)","v":"0"}]
[null,89,{"$f":"'Sledování skóre'!C92&COUNTIF('Sledování skóre'!$C$4:C92,'Sledování skóre'!C92)","v":"0"}]
[null,90,{"$f":"'Sledování skóre'!C93&COUNTIF('Sledování skóre'!$C$4:C93,'Sledování skóre'!C93)","v":"0"}]
[null,91,{"$f":"'Sledování skóre'!C94&COUNTIF('Sledování skóre'!$C$4:C94,'Sledování skóre'!C94)","v":"0"}]
[null,92,{"$f":"'Sledování skóre'!C95&COUNTIF('Sledování skóre'!$C$4:C95,'Sledování skóre'!C95)","v":"0"}]
[null,93,{"$f":"'Sledování skóre'!C96&COUNTIF('Sledování skóre'!$C$4:C96,'Sledování skóre'!C96)","v":"0"}]
[null,94,{"$f":"'Sledování skóre'!C97&COUNTIF('Sledování skóre'!$C$4:C97,'Sledování skóre'!C97)","v":"0"}]
[null,95,{"$f":"'Sledování skóre'!C98&COUNTIF('Sledování skóre'!$C$4:C98,'Sledování skóre'!C98)","v":"0"}]
[null,96,{"$f":"'Sledování skóre'!C99&COUNTIF('Sledování skóre'!$C$4:C99,'Sledování skóre'!C99)","v":"0"}]
[null,97,{"$f":"'Sledování skóre'!C100&COUNTIF('Sledování skóre'!$C$4:C100,'Sledování skóre'!C100)","v":"0"}]
[null,98,{"$f":"'Sledování skóre'!C101&COUNTIF('Sledování skóre'!$C$4:C101,'Sledování skóre'!C101)","v":"0"}]
[null,99,{"$f":"'Sledování skóre'!C102&COUNTIF('Sledování skóre'!$C$4:C102,'Sledování skóre'!C102)","v":"0"}]
[null,100,{"$f":"'Sledování skóre'!C103&COUNTIF('Sledování skóre'!$C$4:C103,'Sledování skóre'!C103)","v":"0"}]
[null,101,{"$f":"'Sledování skóre'!C104&COUNTIF('Sledování skóre'!$C$4:C104,'Sledování skóre'!C104)","v":"0"}]
[null,102,{"$f":"'Sledování skóre'!C105&COUNTIF('Sledování skóre'!$C$4:C105,'Sledování skóre'!C105)","v":"0"}]
[null,103,{"$f":"'Sledování skóre'!C106&COUNTIF('Sledování skóre'!$C$4:C106,'Sledování skóre'!C106)","v":"0"}]
[null,104,{"$f":"'Sledování skóre'!C107&COUNTIF('Sledování skóre'!$C$4:C107,'Sledování skóre'!C107)","v":"0"}]
[null,105,{"$f":"'Sledování skóre'!C108&COUNTIF('Sledování skóre'!$C$4:C108,'Sledování skóre'!C108)","v":"0"}]
[null,106,{"$f":"'Sledování skóre'!C109&COUNTIF('Sledování skóre'!$C$4:C109,'Sledování skóre'!C109)","v":"0"}]
[null,107,{"$f":"'Sledování skóre'!C110&COUNTIF('Sledování skóre'!$C$4:C110,'Sledování skóre'!C110)","v":"0"}]
[null,108,{"$f":"'Sledování skóre'!C111&COUNTIF('Sledování skóre'!$C$4:C111,'Sledování skóre'!C111)","v":"0"}]
[null,109,{"$f":"'Sledování skóre'!C112&COUNTIF('Sledování skóre'!$C$4:C112,'Sledování skóre'!C112)","v":"0"}]
[null,110,{"$f":"'Sledování skóre'!C113&COUNTIF('Sledování skóre'!$C$4:C113,'Sledování skóre'!C113)","v":"0"}]
[null,111,{"$f":"'Sledování skóre'!C114&COUNTIF('Sledování skóre'!$C$4:C114,'Sledování skóre'!C114)","v":"0"}]
[null,112,{"$f":"'Sledování skóre'!C115&COUNTIF('Sledování skóre'!$C$4:C115,'Sledování skóre'!C115)","v":"0"}]
[null,113,{"$f":"'Sledování skóre'!C116&COUNTIF('Sledování skóre'!$C$4:C116,'Sledování skóre'!C116)","v":"0"}]
[null,114,{"$f":"'Sledování skóre'!C117&COUNTIF('Sledování skóre'!$C$4:C117,'Sledování skóre'!C117)","v":"0"}]
[null,115,{"$f":"'Sledování skóre'!C118&COUNTIF('Sledování skóre'!$C$4:C118,'Sledování skóre'!C118)","v":"0"}]
[null,116,{"$f":"'Sledování skóre'!C119&COUNTIF('Sledování skóre'!$C$4:C119,'Sledování skóre'!C119)","v":"0"}]
[null,117,{"$f":"'Sledování skóre'!C120&COUNTIF('Sledování skóre'!$C$4:C120,'Sledování skóre'!C120)","v":"0"}]
[null,118,{"$f":"'Sledování skóre'!C121&COUNTIF('Sledování skóre'!$C$4:C121,'Sledování skóre'!C121)","v":"0"}]
[null,119,{"$f":"'Sledování skóre'!C122&COUNTIF('Sledování skóre'!$C$4:C122,'Sledování skóre'!C122)","v":"0"}]
[null,120,{"$f":"'Sledování skóre'!C123&COUNTIF('Sledování skóre'!$C$4:C123,'Sledování skóre'!C123)","v":"0"}]
[null,121,{"$f":"'Sledování skóre'!C124&COUNTIF('Sledování skóre'!$C$4:C124,'Sledování skóre'!C124)","v":"0"}]
[null,122,{"$f":"'Sledování skóre'!C125&COUNTIF('Sledování skóre'!$C$4:C125,'Sledování skóre'!C125)","v":"0"}]
[null,123,{"$f":"'Sledování skóre'!C126&COUNTIF('Sledování skóre'!$C$4:C126,'Sledování skóre'!C126)","v":"0"}]
[null,124,{"$f":"'Sledování skóre'!C127&COUNTIF('Sledování skóre'!$C$4:C127,'Sledování skóre'!C127)","v":"0"}]
[null,125,{"$f":"'Sledování skóre'!C128&COUNTIF('Sledování skóre'!$C$4:C128,'Sledování skóre'!C128)","v":"0"}]
[null,126,{"$f":"'Sledování skóre'!C129&COUNTIF('Sledování skóre'!$C$4:C129,'Sledování skóre'!C129)","v":"0"}]
[null,127,{"$f":"'Sledování skóre'!C130&COUNTIF('Sledování skóre'!$C$4:C130,'Sledování skóre'!C130)","v":"0"}]
[null,128,{"$f":"'Sledování skóre'!C131&COUNTIF('Sledování skóre'!$C$4:C131,'Sledování skóre'!C131)","v":"0"}]
[null,129,{"$f":"'Sledování skóre'!C132&COUNTIF('Sledování skóre'!$C$4:C132,'Sledování skóre'!C132)","v":"0"}]
[null,130,{"$f":"'Sledování skóre'!C133&COUNTIF('Sledování skóre'!$C$4:C133,'Sledování skóre'!C133)","v":"0"}]
[null,131,{"$f":"'Sledování skóre'!C134&COUNTIF('Sledování skóre'!$C$4:C134,'Sledování skóre'!C134)","v":"0"}]
[null,132,{"$f":"'Sledování skóre'!C135&COUNTIF('Sledování skóre'!$C$4:C135,'Sledování skóre'!C135)","v":"0"}]
[null,133,{"$f":"'Sledování skóre'!C136&COUNTIF('Sledování skóre'!$C$4:C136,'Sledování skóre'!C136)","v":"0"}]
[null,134,{"$f":"'Sledování skóre'!C137&COUNTIF('Sledování skóre'!$C$4:C137,'Sledování skóre'!C137)","v":"0"}]
[null,135,{"$f":"'Sledování skóre'!C138&COUNTIF('Sledování skóre'!$C$4:C138,'Sledování skóre'!C138)","v":"0"}]
[null,136,{"$f":"'Sledování skóre'!C139&COUNTIF('Sledování skóre'!$C$4:C139,'Sledování skóre'!C139)","v":"0"}]
[null,137,{"$f":"'Sledování skóre'!C140&COUNTIF('Sledování skóre'!$C$4:C140,'Sledování skóre'!C140)","v":"0"}]
[null,138,{"$f":"'Sledování skóre'!C141&COUNTIF('Sledování skóre'!$C$4:C141,'Sledování skóre'!C141)","v":"0"}]
[null,139,{"$f":"'Sledování skóre'!C142&COUNTIF('Sledování skóre'!$C$4:C142,'Sledování skóre'!C142)","v":"0"}]
[null,140,{"$f":"'Sledování skóre'!C143&COUNTIF('Sledování skóre'!$C$4:C143,'Sledování skóre'!C143)","v":"0"}]
[null,141,{"$f":"'Sledování skóre'!C144&COUNTIF('Sledování skóre'!$C$4:C144,'Sledování skóre'!C144)","v":"0"}]
[null,142,{"$f":"'Sledování skóre'!C145&COUNTIF('Sledování skóre'!$C$4:C145,'Sledování skóre'!C145)","v":"0"}]
[null,143,{"$f":"'Sledování skóre'!C146&COUNTIF('Sledování skóre'!$C$4:C146,'Sledování skóre'!C146)","v":"0"}]
[null,144,{"$f":"'Sledování skóre'!C147&COUNTIF('Sledování skóre'!$C$4:C147,'Sledování skóre'!C147)","v":"0"}]
[null,145,{"$f":"'Sledování skóre'!C148&COUNTIF('Sledování skóre'!$C$4:C148,'Sledování skóre'!C148)","v":"0"}]
[null,146,{"$f":"'Sledování skóre'!C149&COUNTIF('Sledování skóre'!$C$4:C149,'Sledování skóre'!C149)","v":"0"}]
[null,147,{"$f":"'Sledování skóre'!C150&COUNTIF('Sledování skóre'!$C$4:C150,'Sledování skóre'!C150)","v":"0"}]
[null,148,{"$f":"'Sledování skóre'!C151&COUNTIF('Sledování skóre'!$C$4:C151,'Sledování skóre'!C151)","v":"0"}]
[null,149,{"$f":"'Sledování skóre'!C152&COUNTIF('Sledování skóre'!$C$4:C152,'Sledování skóre'!C152)","v":"0"}]
[null,150,{"$f":"'Sledování skóre'!C153&COUNTIF('Sledování skóre'!$C$4:C153,'Sledování skóre'!C153)","v":"0"}]
[null,151,{"$f":"'Sledování skóre'!C154&COUNTIF('Sledování skóre'!$C$4:C154,'Sledování skóre'!C154)","v":"0"}]
[null,152,{"$f":"'Sledování skóre'!C155&COUNTIF('Sledování skóre'!$C$4:C155,'Sledování skóre'!C155)","v":"0"}]
[null,153,{"$f":"'Sledování skóre'!C156&COUNTIF('Sledování skóre'!$C$4:C156,'Sledování skóre'!C156)","v":"0"}]
[null,154,{"$f":"'Sledování skóre'!C157&COUNTIF('Sledování skóre'!$C$4:C157,'Sledování skóre'!C157)","v":"0"}]
[null,155,{"$f":"'Sledování skóre'!C158&COUNTIF('Sledování skóre'!$C$4:C158,'Sledování skóre'!C158)","v":"0"}]
[null,156,{"$f":"'Sledování skóre'!C159&COUNTIF('Sledování skóre'!$C$4:C159,'Sledování skóre'!C159)","v":"0"}]
[null,157,{"$f":"'Sledování skóre'!C160&COUNTIF('Sledování skóre'!$C$4:C160,'Sledování skóre'!C160)","v":"0"}]
[null,158,{"$f":"'Sledování skóre'!C161&COUNTIF('Sledování skóre'!$C$4:C161,'Sledování skóre'!C161)","v":"0"}]
[null,159,{"$f":"'Sledování skóre'!C162&COUNTIF('Sledování skóre'!$C$4:C162,'Sledování skóre'!C162)","v":"0"}]
[null,160,{"$f":"'Sledování skóre'!C163&COUNTIF('Sledování skóre'!$C$4:C163,'Sledování skóre'!C163)","v":"0"}]
[null,161,{"$f":"'Sledování skóre'!C164&COUNTIF('Sledování skóre'!$C$4:C164,'Sledování skóre'!C164)","v":"0"}]
[null,162,{"$f":"'Sledování skóre'!C165&COUNTIF('Sledování skóre'!$C$4:C165,'Sledování skóre'!C165)","v":"0"}]
[null,163,{"$f":"'Sledování skóre'!C166&COUNTIF('Sledování skóre'!$C$4:C166,'Sledování skóre'!C166)","v":"0"}]
[null,164,{"$f":"'Sledování skóre'!C167&COUNTIF('Sledování skóre'!$C$4:C167,'Sledování skóre'!C167)","v":"0"}]
[null,165,{"$f":"'Sledování skóre'!C168&COUNTIF('Sledování skóre'!$C$4:C168,'Sledování skóre'!C168)","v":"0"}]
[null,166,{"$f":"'Sledování skóre'!C169&COUNTIF('Sledování skóre'!$C$4:C169,'Sledování skóre'!C169)","v":"0"}]
[null,167,{"$f":"'Sledování skóre'!C170&COUNTIF('Sledování skóre'!$C$4:C170,'Sledování skóre'!C170)","v":"0"}]
[null,168,{"$f":"'Sledování skóre'!C171&COUNTIF('Sledování skóre'!$C$4:C171,'Sledování skóre'!C171)","v":"0"}]
[null,169,{"$f":"'Sledování skóre'!C172&COUNTIF('Sledování skóre'!$C$4:C172,'Sledování skóre'!C172)","v":"0"}]
[null,170,{"$f":"'Sledování skóre'!C173&COUNTIF('Sledování skóre'!$C$4:C173,'Sledování skóre'!C173)","v":"0"}]
[null,171,{"$f":"'Sledování skóre'!C174&COUNTIF('Sledování skóre'!$C$4:C174,'Sledování skóre'!C174)","v":"0"}]
[null,172,{"$f":"'Sledování skóre'!C175&COUNTIF('Sledování skóre'!$C$4:C175,'Sledování skóre'!C175)","v":"0"}]
[null,173,{"$f":"'Sledování skóre'!C176&COUNTIF('Sledování skóre'!$C$4:C176,'Sledování skóre'!C176)","v":"0"}]
[null,174,{"$f":"'Sledování skóre'!C177&COUNTIF('Sledování skóre'!$C$4:C177,'Sledování skóre'!C177)","v":"0"}]
[null,175,{"$f":"'Sledování skóre'!C178&COUNTIF('Sledování skóre'!$C$4:C178,'Sledování skóre'!C178)","v":"0"}]
[null,176,{"$f":"'Sledování skóre'!C179&COUNTIF('Sledování skóre'!$C$4:C179,'Sledování skóre'!C179)","v":"0"}]
[null,177,{"$f":"'Sledování skóre'!C180&COUNTIF('Sledování skóre'!$C$4:C180,'Sledování skóre'!C180)","v":"0"}]
[null,178,{"$f":"'Sledování skóre'!C181&COUNTIF('Sledování skóre'!$C$4:C181,'Sledování skóre'!C181)","v":"0"}]
[null,179,{"$f":"'Sledování skóre'!C182&COUNTIF('Sledování skóre'!$C$4:C182,'Sledování skóre'!C182)","v":"0"}]
[null,180,{"$f":"'Sledování skóre'!C183&COUNTIF('Sledování skóre'!$C$4:C183,'Sledování skóre'!C183)","v":"0"}]
[null,181,{"$f":"'Sledování skóre'!C184&COUNTIF('Sledování skóre'!$C$4:C184,'Sledování skóre'!C184)","v":"0"}]
[null,182,{"$f":"'Sledování skóre'!C185&COUNTIF('Sledování skóre'!$C$4:C185,'Sledování skóre'!C185)","v":"0"}]
[null,183,{"$f":"'Sledování skóre'!C186&COUNTIF('Sledování skóre'!$C$4:C186,'Sledování skóre'!C186)","v":"0"}]
[null,184,{"$f":"'Sledování skóre'!C187&COUNTIF('Sledování skóre'!$C$4:C187,'Sledování skóre'!C187)","v":"0"}]
[null,185,{"$f":"'Sledování skóre'!C188&COUNTIF('Sledování skóre'!$C$4:C188,'Sledování skóre'!C188)","v":"0"}]
[null,186,{"$f":"'Sledování skóre'!C189&COUNTIF('Sledování skóre'!$C$4:C189,'Sledování skóre'!C189)","v":"0"}]
[null,187,{"$f":"'Sledování skóre'!C190&COUNTIF('Sledování skóre'!$C$4:C190,'Sledování skóre'!C190)","v":"0"}]
[null,188,{"$f":"'Sledování skóre'!C191&COUNTIF('Sledování skóre'!$C$4:C191,'Sledování skóre'!C191)","v":"0"}]
[null,189,{"$f":"'Sledování skóre'!C192&COUNTIF('Sledování skóre'!$C$4:C192,'Sledování skóre'!C192)","v":"0"}]
[null,190,{"$f":"'Sledování skóre'!C193&COUNTIF('Sledování skóre'!$C$4:C193,'Sledování skóre'!C193)","v":"0"}]
[null,191,{"$f":"'Sledování skóre'!C194&COUNTIF('Sledování skóre'!$C$4:C194,'Sledování skóre'!C194)","v":"0"}]
[null,192,{"$f":"'Sledování skóre'!C195&COUNTIF('Sledování skóre'!$C$4:C195,'Sledování skóre'!C195)","v":"0"}]
[null,193,{"$f":"'Sledování skóre'!C196&COUNTIF('Sledování skóre'!$C$4:C196,'Sledování skóre'!C196)","v":"0"}]
[null,194,{"$f":"'Sledování skóre'!C197&COUNTIF('Sledování skóre'!$C$4:C197,'Sledování skóre'!C197)","v":"0"}]
[null,195,{"$f":"'Sledování skóre'!C198&COUNTIF('Sledování skóre'!$C$4:C198,'Sledování skóre'!C198)","v":"0"}]
[null,196,{"$f":"'Sledování skóre'!C199&COUNTIF('Sledování skóre'!$C$4:C199,'Sledování skóre'!C199)","v":"0"}]
[null,197,{"$f":"'Sledování skóre'!C200&COUNTIF('Sledování skóre'!$C$4:C200,'Sledování skóre'!C200)","v":"0"}]
[null,198,{"$f":"'Sledování skóre'!C201&COUNTIF('Sledování skóre'!$C$4:C201,'Sledování skóre'!C201)","v":"0"}]
[null,199,{"$f":"'Sledování skóre'!C202&COUNTIF('Sledování skóre'!$C$4:C202,'Sledování skóre'!C202)","v":"0"}]
[null,200,{"$f":"'Sledování skóre'!C203&COUNTIF('Sledování skóre'!$C$4:C203,'Sledování skóre'!C203)","v":"0"}]
[null,201,{"$f":"'Sledování skóre'!C204&COUNTIF('Sledování skóre'!$C$4:C204,'Sledování skóre'!C204)","v":"0"}]
[null,202,{"$f":"'Sledování skóre'!C205&COUNTIF('Sledování skóre'!$C$4:C205,'Sledování skóre'!C205)","v":"0"}]
[null,203,{"$f":"'Sledování skóre'!C206&COUNTIF('Sledování skóre'!$C$4:C206,'Sledování skóre'!C206)","v":"0"}]
[null,204,{"$f":"'Sledování skóre'!C207&COUNTIF('Sledování skóre'!$C$4:C207,'Sledování skóre'!C207)","v":"0"}]
[null,205,{"$f":"'Sledování skóre'!C208&COUNTIF('Sledování skóre'!$C$4:C208,'Sledování skóre'!C208)","v":"0"}]
[null,206,{"$f":"'Sledování skóre'!C209&COUNTIF('Sledování skóre'!$C$4:C209,'Sledování skóre'!C209)","v":"0"}]
[null,207,{"$f":"'Sledování skóre'!C210&COUNTIF('Sledování skóre'!$C$4:C210,'Sledování skóre'!C210)","v":"0"}]
[null,208,{"$f":"'Sledování skóre'!C211&COUNTIF('Sledování skóre'!$C$4:C211,'Sledování skóre'!C211)","v":"0"}]
[null,209,{"$f":"'Sledování skóre'!C212&COUNTIF('Sledování skóre'!$C$4:C212,'Sledování skóre'!C212)","v":"0"}]
[null,210,{"$f":"'Sledování skóre'!C213&COUNTIF('Sledování skóre'!$C$4:C213,'Sledování skóre'!C213)","v":"0"}]
[null,211,{"$f":"'Sledování skóre'!C214&COUNTIF('Sledování skóre'!$C$4:C214,'Sledování skóre'!C214)","v":"0"}]
[null,212,{"$f":"'Sledování skóre'!C215&COUNTIF('Sledování skóre'!$C$4:C215,'Sledování skóre'!C215)","v":"0"}]
[null,213,{"$f":"'Sledování skóre'!C216&COUNTIF('Sledování skóre'!$C$4:C216,'Sledování skóre'!C216)","v":"0"}]
[null,214,{"$f":"'Sledování skóre'!C217&COUNTIF('Sledování skóre'!$C$4:C217,'Sledování skóre'!C217)","v":"0"}]
[null,215,{"$f":"'Sledování skóre'!C218&COUNTIF('Sledování skóre'!$C$4:C218,'Sledování skóre'!C218)","v":"0"}]
[null,216,{"$f":"'Sledování skóre'!C219&COUNTIF('Sledování skóre'!$C$4:C219,'Sledování skóre'!C219)","v":"0"}]
[null,217,{"$f":"'Sledování skóre'!C220&COUNTIF('Sledování skóre'!$C$4:C220,'Sledování skóre'!C220)","v":"0"}]
[null,218,{"$f":"'Sledování skóre'!C221&COUNTIF('Sledování skóre'!$C$4:C221,'Sledování skóre'!C221)","v":"0"}]
[null,219,{"$f":"'Sledování skóre'!C222&COUNTIF('Sledování skóre'!$C$4:C222,'Sledování skóre'!C222)","v":"0"}]
[null,220,{"$f":"'Sledování skóre'!C223&COUNTIF('Sledování skóre'!$C$4:C223,'Sledování skóre'!C223)","v":"0"}]
[null,221,{"$f":"'Sledování skóre'!C224&COUNTIF('Sledování skóre'!$C$4:C224,'Sledování skóre'!C224)","v":"0"}]
[null,222,{"$f":"'Sledování skóre'!C225&COUNTIF('Sledování skóre'!$C$4:C225,'Sledování skóre'!C225)","v":"0"}]
[null,223,{"$f":"'Sledování skóre'!C226&COUNTIF('Sledování skóre'!$C$4:C226,'Sledování skóre'!C226)","v":"0"}]
[null,224,{"$f":"'Sledování skóre'!C227&COUNTIF('Sledování skóre'!$C$4:C227,'Sledování skóre'!C227)","v":"0"}]
[null,225,{"$f":"'Sledování skóre'!C228&COUNTIF('Sledování skóre'!$C$4:C228,'Sledování skóre'!C228)","v":"0"}]
[null,226,{"$f":"'Sledování skóre'!C229&COUNTIF('Sledování skóre'!$C$4:C229,'Sledování skóre'!C229)","v":"0"}]
[null,227,{"$f":"'Sledování skóre'!C230&COUNTIF('Sledování skóre'!$C$4:C230,'Sledování skóre'!C230)","v":"0"}]
[null,228,{"$f":"'Sledování skóre'!C231&COUNTIF('Sledování skóre'!$C$4:C231,'Sledování skóre'!C231)","v":"0"}]
[null,229,{"$f":"'Sledování skóre'!C232&COUNTIF('Sledování skóre'!$C$4:C232,'Sledování skóre'!C232)","v":"0"}]
[null,230,{"$f":"'Sledování skóre'!C233&COUNTIF('Sledování skóre'!$C$4:C233,'Sledování skóre'!C233)","v":"0"}]
[null,231,{"$f":"'Sledování skóre'!C234&COUNTIF('Sledování skóre'!$C$4:C234,'Sledování skóre'!C234)","v":"0"}]
[null,232,{"$f":"'Sledování skóre'!C235&COUNTIF('Sledování skóre'!$C$4:C235,'Sledování skóre'!C235)","v":"0"}]
[null,233,{"$f":"'Sledování skóre'!C236&COUNTIF('Sledování skóre'!$C$4:C236,'Sledování skóre'!C236)","v":"0"}]
[null,234,{"$f":"'Sledování skóre'!C237&COUNTIF('Sledování skóre'!$C$4:C237,'Sledování skóre'!C237)","v":"0"}]
[null,235,{"$f":"'Sledování skóre'!C238&COUNTIF('Sledování skóre'!$C$4:C238,'Sledování skóre'!C238)","v":"0"}]
[null,236,{"$f":"'Sledování skóre'!C239&COUNTIF('Sledování skóre'!$C$4:C239,'Sledování skóre'!C239)","v":"0"}]
[null,237,{"$f":"'Sledování skóre'!C240&COUNTIF('Sledování skóre'!$C$4:C240,'Sledování skóre'!C240)","v":"0"}]
[null,238,{"$f":"'Sledování skóre'!C241&COUNTIF('Sledování skóre'!$C$4:C241,'Sledování skóre'!C241)","v":"0"}]
[null,239,{"$f":"'Sledování skóre'!C242&COUNTIF('Sledování skóre'!$C$4:C242,'Sledování skóre'!C242)","v":"0"}]
[null,240,{"$f":"'Sledování skóre'!C243&COUNTIF('Sledování skóre'!$C$4:C243,'Sledování skóre'!C243)","v":"0"}]
[null,241,{"$f":"'Sledování skóre'!C244&COUNTIF('Sledování skóre'!$C$4:C244,'Sledování skóre'!C244)","v":"0"}]
[null,242,{"$f":"'Sledování skóre'!C245&COUNTIF('Sledování skóre'!$C$4:C245,'Sledování skóre'!C245)","v":"0"}]
[null,243,{"$f":"'Sledování skóre'!C246&COUNTIF('Sledování skóre'!$C$4:C246,'Sledování skóre'!C246)","v":"0"}]
[null,244,{"$f":"'Sledování skóre'!C247&COUNTIF('Sledování skóre'!$C$4:C247,'Sledování skóre'!C247)","v":"0"}]
[null,245,{"$f":"'Sledování skóre'!C248&COUNTIF('Sledování skóre'!$C$4:C248,'Sledování skóre'!C248)","v":"0"}]
[null,246,{"$f":"'Sledování skóre'!C249&COUNTIF('Sledování skóre'!$C$4:C249,'Sledování skóre'!C249)","v":"0"}]
[null,247,{"$f":"'Sledování skóre'!C250&COUNTIF('Sledování skóre'!$C$4:C250,'Sledování skóre'!C250)","v":"0"}]
[null,248,{"$f":"'Sledování skóre'!C251&COUNTIF('Sledování skóre'!$C$4:C251,'Sledování skóre'!C251)","v":"0"}]
[null,249,{"$f":"'Sledování skóre'!C252&COUNTIF('Sledování skóre'!$C$4:C252,'Sledování skóre'!C252)","v":"0"}]
[null,250,{"$f":"'Sledování skóre'!C253&COUNTIF('Sledování skóre'!$C$4:C253,'Sledování skóre'!C253)","v":"0"}]
[null,251,{"$f":"'Sledování skóre'!C254&COUNTIF('Sledování skóre'!$C$4:C254,'Sledování skóre'!C254)","v":"0"}]
[null,252,{"$f":"'Sledování skóre'!C255&COUNTIF('Sledování skóre'!$C$4:C255,'Sledování skóre'!C255)","v":"0"}]
[null,253,{"$f":"'Sledování skóre'!C256&COUNTIF('Sledování skóre'!$C$4:C256,'Sledování skóre'!C256)","v":"0"}]
[null,254,{"$f":"'Sledování skóre'!C257&COUNTIF('Sledování skóre'!$C$4:C257,'Sledování skóre'!C257)","v":"0"}]
[null,255,{"$f":"'Sledování skóre'!C258&COUNTIF('Sledování skóre'!$C$4:C258,'Sledování skóre'!C258)","v":"0"}]
[null,256,{"$f":"'Sledování skóre'!C259&COUNTIF('Sledování skóre'!$C$4:C259,'Sledování skóre'!C259)","v":"0"}]
[null,257,{"$f":"'Sledování skóre'!C260&COUNTIF('Sledování skóre'!$C$4:C260,'Sledování skóre'!C260)","v":"0"}]
[null,258,{"$f":"'Sledování skóre'!C261&COUNTIF('Sledování skóre'!$C$4:C261,'Sledování skóre'!C261)","v":"0"}]
[null,259,{"$f":"'Sledování skóre'!C262&COUNTIF('Sledování skóre'!$C$4:C262,'Sledování skóre'!C262)","v":"0"}]
[null,260,{"$f":"'Sledování skóre'!C263&COUNTIF('Sledování skóre'!$C$4:C263,'Sledování skóre'!C263)","v":"0"}]
[null,261,{"$f":"'Sledování skóre'!C264&COUNTIF('Sledování skóre'!$C$4:C264,'Sledování skóre'!C264)","v":"0"}]
[null,262,{"$f":"'Sledování skóre'!C265&COUNTIF('Sledování skóre'!$C$4:C265,'Sledování skóre'!C265)","v":"0"}]
[null,263,{"$f":"'Sledování skóre'!C266&COUNTIF('Sledování skóre'!$C$4:C266,'Sledování skóre'!C266)","v":"0"}]
[null,264,{"$f":"'Sledování skóre'!C267&COUNTIF('Sledování skóre'!$C$4:C267,'Sledování skóre'!C267)","v":"0"}]
[null,265,{"$f":"'Sledování skóre'!C268&COUNTIF('Sledování skóre'!$C$4:C268,'Sledování skóre'!C268)","v":"0"}]
[null,266,{"$f":"'Sledování skóre'!C269&COUNTIF('Sledování skóre'!$C$4:C269,'Sledování skóre'!C269)","v":"0"}]
[null,267,{"$f":"'Sledování skóre'!C270&COUNTIF('Sledování skóre'!$C$4:C270,'Sledování skóre'!C270)","v":"0"}]
[null,268,{"$f":"'Sledování skóre'!C271&COUNTIF('Sledování skóre'!$C$4:C271,'Sledování skóre'!C271)","v":"0"}]
[null,269,{"$f":"'Sledování skóre'!C272&COUNTIF('Sledování skóre'!$C$4:C272,'Sledování skóre'!C272)","v":"0"}]
[null,270,{"$f":"'Sledování skóre'!C273&COUNTIF('Sledování skóre'!$C$4:C273,'Sledování skóre'!C273)","v":"0"}]
[null,271,{"$f":"'Sledování skóre'!C274&COUNTIF('Sledování skóre'!$C$4:C274,'Sledování skóre'!C274)","v":"0"}]
[null,272,{"$f":"'Sledování skóre'!C275&COUNTIF('Sledování skóre'!$C$4:C275,'Sledování skóre'!C275)","v":"0"}]
[null,273,{"$f":"'Sledování skóre'!C276&COUNTIF('Sledování skóre'!$C$4:C276,'Sledování skóre'!C276)","v":"0"}]
[null,274,{"$f":"'Sledování skóre'!C277&COUNTIF('Sledování skóre'!$C$4:C277,'Sledování skóre'!C277)","v":"0"}]
[null,275,{"$f":"'Sledování skóre'!C278&COUNTIF('Sledování skóre'!$C$4:C278,'Sledování skóre'!C278)","v":"0"}]
[null,276,{"$f":"'Sledování skóre'!C279&COUNTIF('Sledování skóre'!$C$4:C279,'Sledování skóre'!C279)","v":"0"}]
[null,277,{"$f":"'Sledování skóre'!C280&COUNTIF('Sledování skóre'!$C$4:C280,'Sledování skóre'!C280)","v":"0"}]
[null,278,{"$f":"'Sledování skóre'!C281&COUNTIF('Sledování skóre'!$C$4:C281,'Sledování skóre'!C281)","v":"0"}]
[null,279,{"$f":"'Sledování skóre'!C282&COUNTIF('Sledování skóre'!$C$4:C282,'Sledování skóre'!C282)","v":"0"}]
[null,280,{"$f":"'Sledování skóre'!C283&COUNTIF('Sledování skóre'!$C$4:C283,'Sledování skóre'!C283)","v":"0"}]
[null,281,{"$f":"'Sledování skóre'!C284&COUNTIF('Sledování skóre'!$C$4:C284,'Sledování skóre'!C284)","v":"0"}]
[null,282,{"$f":"'Sledování skóre'!C285&COUNTIF('Sledování skóre'!$C$4:C285,'Sledování skóre'!C285)","v":"0"}]
[null,283,{"$f":"'Sledování skóre'!C286&COUNTIF('Sledování skóre'!$C$4:C286,'Sledování skóre'!C286)","v":"0"}]
[null,284,{"$f":"'Sledování skóre'!C287&COUNTIF('Sledování skóre'!$C$4:C287,'Sledování skóre'!C287)","v":"0"}]
[null,285,{"$f":"'Sledování skóre'!C288&COUNTIF('Sledování skóre'!$C$4:C288,'Sledování skóre'!C288)","v":"0"}]
[null,286,{"$f":"'Sledování skóre'!C289&COUNTIF('Sledování skóre'!$C$4:C289,'Sledování skóre'!C289)","v":"0"}]
[null,287,{"$f":"'Sledování skóre'!C290&COUNTIF('Sledování skóre'!$C$4:C290,'Sledování skóre'!C290)","v":"0"}]
[null,288,{"$f":"'Sledování skóre'!C291&COUNTIF('Sledování skóre'!$C$4:C291,'Sledování skóre'!C291)","v":"0"}]
[null,289,{"$f":"'Sledování skóre'!C292&COUNTIF('Sledování skóre'!$C$4:C292,'Sledování skóre'!C292)","v":"0"}]
[null,290,{"$f":"'Sledování skóre'!C293&COUNTIF('Sledování skóre'!$C$4:C293,'Sledování skóre'!C293)","v":"0"}]
[null,291,{"$f":"'Sledování skóre'!C294&COUNTIF('Sledování skóre'!$C$4:C294,'Sledování skóre'!C294)","v":"0"}]
[null,292,{"$f":"'Sledování skóre'!C295&COUNTIF('Sledování skóre'!$C$4:C295,'Sledování skóre'!C295)","v":"0"}]
[null,293,{"$f":"'Sledování skóre'!C296&COUNTIF('Sledování skóre'!$C$4:C296,'Sledování skóre'!C296)","v":"0"}]
[null,294,{"$f":"'Sledování skóre'!C297&COUNTIF('Sledování skóre'!$C$4:C297,'Sledování skóre'!C297)","v":"0"}]
[null,295,{"$f":"'Sledování skóre'!C298&COUNTIF('Sledování skóre'!$C$4:C298,'Sledování skóre'!C298)","v":"0"}]
[null,296,{"$f":"'Sledování skóre'!C299&COUNTIF('Sledování skóre'!$C$4:C299,'Sledování skóre'!C299)","v":"0"}]
[null,297,{"$f":"'Sledování skóre'!C300&COUNTIF('Sledování skóre'!$C$4:C300,'Sledování skóre'!C300)","v":"0"}]
[null,298,{"$f":"'Sledování skóre'!C301&COUNTIF('Sledování skóre'!$C$4:C301,'Sledování skóre'!C301)","v":"0"}]
[null,299,{"$f":"'Sledování skóre'!C302&COUNTIF('Sledování skóre'!$C$4:C302,'Sledování skóre'!C302)","v":"0"}]
[null,300,{"$f":"'Sledování skóre'!C303&COUNTIF('Sledování skóre'!$C$4:C303,'Sledování skóre'!C303)","v":"0"}]
[null,301,{"$f":"'Sledování skóre'!C304&COUNTIF('Sledování skóre'!$C$4:C304,'Sledování skóre'!C304)","v":"0"}]
[null,302,{"$f":"'Sledování skóre'!C305&COUNTIF('Sledování skóre'!$C$4:C305,'Sledování skóre'!C305)","v":"0"}]
[null,303,{"$f":"'Sledování skóre'!C306&COUNTIF('Sledování skóre'!$C$4:C306,'Sledování skóre'!C306)","v":"0"}]
[null,304,{"$f":"'Sledování skóre'!C307&COUNTIF('Sledování skóre'!$C$4:C307,'Sledování skóre'!C307)","v":"0"}]
[null,305,{"$f":"'Sledování skóre'!C308&COUNTIF('Sledování skóre'!$C$4:C308,'Sledování skóre'!C308)","v":"0"}]
[null,306,{"$f":"'Sledování skóre'!C309&COUNTIF('Sledování skóre'!$C$4:C309,'Sledování skóre'!C309)","v":"0"}]
[null,307,{"$f":"'Sledování skóre'!C310&COUNTIF('Sledování skóre'!$C$4:C310,'Sledování skóre'!C310)","v":"0"}]
[null,308,{"$f":"'Sledování skóre'!C311&COUNTIF('Sledování skóre'!$C$4:C311,'Sledování skóre'!C311)","v":"0"}]
[null,309,{"$f":"'Sledování skóre'!C312&COUNTIF('Sledování skóre'!$C$4:C312,'Sledování skóre'!C312)","v":"0"}]
[null,310,{"$f":"'Sledování skóre'!C313&COUNTIF('Sledování skóre'!$C$4:C313,'Sledování skóre'!C313)","v":"0"}]
[null,311,{"$f":"'Sledování skóre'!C314&COUNTIF('Sledování skóre'!$C$4:C314,'Sledování skóre'!C314)","v":"0"}]
[null,312,{"$f":"'Sledování skóre'!C315&COUNTIF('Sledování skóre'!$C$4:C315,'Sledování skóre'!C315)","v":"0"}]
[null,313,{"$f":"'Sledování skóre'!C316&COUNTIF('Sledování skóre'!$C$4:C316,'Sledování skóre'!C316)","v":"0"}]
[null,314,{"$f":"'Sledování skóre'!C317&COUNTIF('Sledování skóre'!$C$4:C317,'Sledování skóre'!C317)","v":"0"}]
[null,315,{"$f":"'Sledování skóre'!C318&COUNTIF('Sledování skóre'!$C$4:C318,'Sledování skóre'!C318)","v":"0"}]
[null,316,{"$f":"'Sledování skóre'!C319&COUNTIF('Sledování skóre'!$C$4:C319,'Sledování skóre'!C319)","v":"0"}]
[null,317,{"$f":"'Sledování skóre'!C320&COUNTIF('Sledování skóre'!$C$4:C320,'Sledování skóre'!C320)","v":"0"}]
[null,318,{"$f":"'Sledování skóre'!C321&COUNTIF('Sledování skóre'!$C$4:C321,'Sledování skóre'!C321)","v":"0"}]
[null,319,{"$f":"'Sledování skóre'!C322&COUNTIF('Sledování skóre'!$C$4:C322,'Sledování skóre'!C322)","v":"0"}]
[null,320,{"$f":"'Sledování skóre'!C323&COUNTIF('Sledování skóre'!$C$4:C323,'Sledování skóre'!C323)","v":"0"}]
[null,321,{"$f":"'Sledování skóre'!C324&COUNTIF('Sledování skóre'!$C$4:C324,'Sledování skóre'!C324)","v":"0"}]
[null,322,{"$f":"'Sledování skóre'!C325&COUNTIF('Sledování skóre'!$C$4:C325,'Sledování skóre'!C325)","v":"0"}]
[null,323,{"$f":"'Sledování skóre'!C326&COUNTIF('Sledování skóre'!$C$4:C326,'Sledování skóre'!C326)","v":"0"}]
[null,324,{"$f":"'Sledování skóre'!C327&COUNTIF('Sledování skóre'!$C$4:C327,'Sledování skóre'!C327)","v":"0"}]
[null,325,{"$f":"'Sledování skóre'!C328&COUNTIF('Sledování skóre'!$C$4:C328,'Sledování skóre'!C328)","v":"0"}]
[null,326,{"$f":"'Sledování skóre'!C329&COUNTIF('Sledování skóre'!$C$4:C329,'Sledování skóre'!C329)","v":"0"}]
[null,327,{"$f":"'Sledování skóre'!C330&COUNTIF('Sledování skóre'!$C$4:C330,'Sledování skóre'!C330)","v":"0"}]
[null,328,{"$f":"'Sledování skóre'!C331&COUNTIF('Sledování skóre'!$C$4:C331,'Sledování skóre'!C331)","v":"0"}]
[null,329,{"$f":"'Sledování skóre'!C332&COUNTIF('Sledování skóre'!$C$4:C332,'Sledování skóre'!C332)","v":"0"}]
[null,330,{"$f":"'Sledování skóre'!C333&COUNTIF('Sledování skóre'!$C$4:C333,'Sledování skóre'!C333)","v":"0"}]
[null,331,{"$f":"'Sledování skóre'!C334&COUNTIF('Sledování skóre'!$C$4:C334,'Sledování skóre'!C334)","v":"0"}]
[null,332,{"$f":"'Sledování skóre'!C335&COUNTIF('Sledování skóre'!$C$4:C335,'Sledování skóre'!C335)","v":"0"}]
[null,333,{"$f":"'Sledování skóre'!C336&COUNTIF('Sledování skóre'!$C$4:C336,'Sledování skóre'!C336)","v":"0"}]
[null,334,{"$f":"'Sledování skóre'!C337&COUNTIF('Sledování skóre'!$C$4:C337,'Sledování skóre'!C337)","v":"0"}]
[null,335,{"$f":"'Sledování skóre'!C338&COUNTIF('Sledování skóre'!$C$4:C338,'Sledování skóre'!C338)","v":"0"}]
[null,336,{"$f":"'Sledování skóre'!C339&COUNTIF('Sledování skóre'!$C$4:C339,'Sledování skóre'!C339)","v":"0"}]
[null,337,{"$f":"'Sledování skóre'!C340&COUNTIF('Sledování skóre'!$C$4:C340,'Sledování skóre'!C340)","v":"0"}]
[null,338,{"$f":"'Sledování skóre'!C341&COUNTIF('Sledování skóre'!$C$4:C341,'Sledování skóre'!C341)","v":"0"}]
[null,339,{"$f":"'Sledování skóre'!C342&COUNTIF('Sledování skóre'!$C$4:C342,'Sledování skóre'!C342)","v":"0"}]
[null,340,{"$f":"'Sledování skóre'!C343&COUNTIF('Sledování skóre'!$C$4:C343,'Sledování skóre'!C343)","v":"0"}]
[null,341,{"$f":"'Sledování skóre'!C344&COUNTIF('Sledování skóre'!$C$4:C344,'Sledování skóre'!C344)","v":"0"}]
[null,342,{"$f":"'Sledování skóre'!C345&COUNTIF('Sledování skóre'!$C$4:C345,'Sledování skóre'!C345)","v":"0"}]
[null,343,{"$f":"'Sledování skóre'!C346&COUNTIF('Sledování skóre'!$C$4:C346,'Sledování skóre'!C346)","v":"0"}]
[null,344,{"$f":"'Sledování skóre'!C347&COUNTIF('Sledování skóre'!$C$4:C347,'Sledování skóre'!C347)","v":"0"}]
[null,345,{"$f":"'Sledování skóre'!C348&COUNTIF('Sledování skóre'!$C$4:C348,'Sledování skóre'!C348)","v":"0"}]
[null,346,{"$f":"'Sledování skóre'!C349&COUNTIF('Sledování skóre'!$C$4:C349,'Sledování skóre'!C349)","v":"0"}]
[null,347,{"$f":"'Sledování skóre'!C350&COUNTIF('Sledování skóre'!$C$4:C350,'Sledování skóre'!C350)","v":"0"}]
[null,348,{"$f":"'Sledování skóre'!C351&COUNTIF('Sledování skóre'!$C$4:C351,'Sledování skóre'!C351)","v":"0"}]
[null,349,{"$f":"'Sledování skóre'!C352&COUNTIF('Sledování skóre'!$C$4:C352,'Sledování skóre'!C352)","v":"0"}]
[null,350,{"$f":"'Sledování skóre'!C353&COUNTIF('Sledování skóre'!$C$4:C353,'Sledování skóre'!C353)","v":"0"}]
[null,351,{"$f":"'Sledování skóre'!C354&COUNTIF('Sledování skóre'!$C$4:C354,'Sledování skóre'!C354)","v":"0"}]
[null,352,{"$f":"'Sledování skóre'!C355&COUNTIF('Sledování skóre'!$C$4:C355,'Sledování skóre'!C355)","v":"0"}]
[null,353,{"$f":"'Sledování skóre'!C356&COUNTIF('Sledování skóre'!$C$4:C356,'Sledování skóre'!C356)","v":"0"}]
[null,354,{"$f":"'Sledování skóre'!C357&COUNTIF('Sledování skóre'!$C$4:C357,'Sledování skóre'!C357)","v":"0"}]
[null,355,{"$f":"'Sledování skóre'!C358&COUNTIF('Sledování skóre'!$C$4:C358,'Sledování skóre'!C358)","v":"0"}]
[null,356,{"$f":"'Sledování skóre'!C359&COUNTIF('Sledování skóre'!$C$4:C359,'Sledování skóre'!C359)","v":"0"}]
[null,357,{"$f":"'Sledování skóre'!C360&COUNTIF('Sledování skóre'!$C$4:C360,'Sledování skóre'!C360)","v":"0"}]
[null,358,{"$f":"'Sledování skóre'!C361&COUNTIF('Sledování skóre'!$C$4:C361,'Sledování skóre'!C361)","v":"0"}]
[null,359,{"$f":"'Sledování skóre'!C362&COUNTIF('Sledování skóre'!$C$4:C362,'Sledování skóre'!C362)","v":"0"}]
[null,360,{"$f":"'Sledování skóre'!C363&COUNTIF('Sledování skóre'!$C$4:C363,'Sledování skóre'!C363)","v":"0"}]
[null,361,{"$f":"'Sledování skóre'!C364&COUNTIF('Sledování skóre'!$C$4:C364,'Sledování skóre'!C364)","v":"0"}]
[null,362,{"$f":"'Sledování skóre'!C365&COUNTIF('Sledování skóre'!$C$4:C365,'Sledování skóre'!C365)","v":"0"}]
[null,363,{"$f":"'Sledování skóre'!C366&COUNTIF('Sledování skóre'!$C$4:C366,'Sledování skóre'!C366)","v":"0"}]
[null,364,{"$f":"'Sledování skóre'!C367&COUNTIF('Sledování skóre'!$C$4:C367,'Sledování skóre'!C367)","v":"0"}]
[null,365,{"$f":"'Sledování skóre'!C368&COUNTIF('Sledování skóre'!$C$4:C368,'Sledování skóre'!C368)","v":"0"}]
[null,366,{"$f":"'Sledování skóre'!C369&COUNTIF('Sledování skóre'!$C$4:C369,'Sledování skóre'!C369)","v":"0"}]
[null,367,{"$f":"'Sledování skóre'!C370&COUNTIF('Sledování skóre'!$C$4:C370,'Sledování skóre'!C370)","v":"0"}]
[null,368,{"$f":"'Sledování skóre'!C371&COUNTIF('Sledování skóre'!$C$4:C371,'Sledování skóre'!C371)","v":"0"}]
[null,369,{"$f":"'Sledování skóre'!C372&COUNTIF('Sledování skóre'!$C$4:C372,'Sledování skóre'!C372)","v":"0"}]
[null,370,{"$f":"'Sledování skóre'!C373&COUNTIF('Sledování skóre'!$C$4:C373,'Sledování skóre'!C373)","v":"0"}]
[null,371,{"$f":"'Sledování skóre'!C374&COUNTIF('Sledování skóre'!$C$4:C374,'Sledování skóre'!C374)","v":"0"}]
[null,372,{"$f":"'Sledování skóre'!C375&COUNTIF('Sledování skóre'!$C$4:C375,'Sledování skóre'!C375)","v":"0"}]
[null,373,{"$f":"'Sledování skóre'!C376&COUNTIF('Sledování skóre'!$C$4:C376,'Sledování skóre'!C376)","v":"0"}]
[null,374,{"$f":"'Sledování skóre'!C377&COUNTIF('Sledování skóre'!$C$4:C377,'Sledování skóre'!C377)","v":"0"}]
[null,375,{"$f":"'Sledování skóre'!C378&COUNTIF('Sledování skóre'!$C$4:C378,'Sledování skóre'!C378)","v":"0"}]
[null,376,{"$f":"'Sledování skóre'!C379&COUNTIF('Sledování skóre'!$C$4:C379,'Sledování skóre'!C379)","v":"0"}]
[null,377,{"$f":"'Sledování skóre'!C380&COUNTIF('Sledování skóre'!$C$4:C380,'Sledování skóre'!C380)","v":"0"}]
[null,378,{"$f":"'Sledování skóre'!C381&COUNTIF('Sledování skóre'!$C$4:C381,'Sledování skóre'!C381)","v":"0"}]
[null,379,{"$f":"'Sledování skóre'!C382&COUNTIF('Sledování skóre'!$C$4:C382,'Sledování skóre'!C382)","v":"0"}]
[null,380,{"$f":"'Sledování skóre'!C383&COUNTIF('Sledování skóre'!$C$4:C383,'Sledování skóre'!C383)","v":"0"}]
[null,381,{"$f":"'Sledování skóre'!C384&COUNTIF('Sledování skóre'!$C$4:C384,'Sledování skóre'!C384)","v":"0"}]
[null,382,{"$f":"'Sledování skóre'!C385&COUNTIF('Sledování skóre'!$C$4:C385,'Sledování skóre'!C385)","v":"0"}]
[null,383,{"$f":"'Sledování skóre'!C386&COUNTIF('Sledování skóre'!$C$4:C386,'Sledování skóre'!C386)","v":"0"}]
[null,384,{"$f":"'Sledování skóre'!C387&COUNTIF('Sledování skóre'!$C$4:C387,'Sledování skóre'!C387)","v":"0"}]
[null,385,{"$f":"'Sledování skóre'!C388&COUNTIF('Sledování skóre'!$C$4:C388,'Sledování skóre'!C388)","v":"0"}]
[null,386,{"$f":"'Sledování skóre'!C389&COUNTIF('Sledování skóre'!$C$4:C389,'Sledování skóre'!C389)","v":"0"}]
[null,387,{"$f":"'Sledování skóre'!C390&COUNTIF('Sledování skóre'!$C$4:C390,'Sledování skóre'!C390)","v":"0"}]
[null,388,{"$f":"'Sledování skóre'!C391&COUNTIF('Sledování skóre'!$C$4:C391,'Sledování skóre'!C391)","v":"0"}]
[null,389,{"$f":"'Sledování skóre'!C392&COUNTIF('Sledování skóre'!$C$4:C392,'Sledování skóre'!C392)","v":"0"}]
[null,390,{"$f":"'Sledování skóre'!C393&COUNTIF('Sledování skóre'!$C$4:C393,'Sledování skóre'!C393)","v":"0"}]
[null,391,{"$f":"'Sledování skóre'!C394&COUNTIF('Sledování skóre'!$C$4:C394,'Sledování skóre'!C394)","v":"0"}]
[null,392,{"$f":"'Sledování skóre'!C395&COUNTIF('Sledování skóre'!$C$4:C395,'Sledování skóre'!C395)","v":"0"}]
[null,393,{"$f":"'Sledování skóre'!C396&COUNTIF('Sledování skóre'!$C$4:C396,'Sledování skóre'!C396)","v":"0"}]
[null,394,{"$f":"'Sledování skóre'!C397&COUNTIF('Sledování skóre'!$C$4:C397,'Sledování skóre'!C397)","v":"0"}]
[null,395,{"$f":"'Sledování skóre'!C398&COUNTIF('Sledování skóre'!$C$4:C398,'Sledování skóre'!C398)","v":"0"}]
[null,396,{"$f":"'Sledování skóre'!C399&COUNTIF('Sledování skóre'!$C$4:C399,'Sledování skóre'!C399)","v":"0"}]
[null,397,{"$f":"'Sledování skóre'!C400&COUNTIF('Sledování skóre'!$C$4:C400,'Sledování skóre'!C400)","v":"0"}]
[null,398,{"$f":"'Sledování skóre'!C401&COUNTIF('Sledování skóre'!$C$4:C401,'Sledování skóre'!C401)","v":"0"}]
[null,399,{"$f":"'Sledování skóre'!C402&COUNTIF('Sledování skóre'!$C$4:C402,'Sledování skóre'!C402)","v":"0"}]
[null,400,{"$f":"'Sledování skóre'!C403&COUNTIF('Sledování skóre'!$C$4:C403,'Sledování skóre'!C403)","v":"0"}]
[null,401,{"$f":"'Sledování skóre'!C404&COUNTIF('Sledování skóre'!$C$4:C404,'Sledování skóre'!C404)","v":"0"}]
[null,402,{"$f":"'Sledování skóre'!C405&COUNTIF('Sledování skóre'!$C$4:C405,'Sledování skóre'!C405)","v":"0"}]
[null,403,{"$f":"'Sledování skóre'!C406&COUNTIF('Sledování skóre'!$C$4:C406,'Sledování skóre'!C406)","v":"0"}]
[null,404,{"$f":"'Sledování skóre'!C407&COUNTIF('Sledování skóre'!$C$4:C407,'Sledování skóre'!C407)","v":"0"}]
[null,405,{"$f":"'Sledování skóre'!C408&COUNTIF('Sledování skóre'!$C$4:C408,'Sledování skóre'!C408)","v":"0"}]
[null,406,{"$f":"'Sledování skóre'!C409&COUNTIF('Sledování skóre'!$C$4:C409,'Sledování skóre'!C409)","v":"0"}]
[null,407,{"$f":"'Sledování skóre'!C410&COUNTIF('Sledování skóre'!$C$4:C410,'Sledování skóre'!C410)","v":"0"}]
[null,408,{"$f":"'Sledování skóre'!C411&COUNTIF('Sledování skóre'!$C$4:C411,'Sledování skóre'!C411)","v":"0"}]
[null,409,{"$f":"'Sledování skóre'!C412&COUNTIF('Sledování skóre'!$C$4:C412,'Sledování skóre'!C412)","v":"0"}]
[null,410,{"$f":"'Sledování skóre'!C413&COUNTIF('Sledování skóre'!$C$4:C413,'Sledování skóre'!C413)","v":"0"}]
[null,411,{"$f":"'Sledování skóre'!C414&COUNTIF('Sledování skóre'!$C$4:C414,'Sledování skóre'!C414)","v":"0"}]
[null,412,{"$f":"'Sledování skóre'!C415&COUNTIF('Sledování skóre'!$C$4:C415,'Sledování skóre'!C415)","v":"0"}]
[null,413,{"$f":"'Sledování skóre'!C416&COUNTIF('Sledování skóre'!$C$4:C416,'Sledování skóre'!C416)","v":"0"}]
[null,414,{"$f":"'Sledování skóre'!C417&COUNTIF('Sledování skóre'!$C$4:C417,'Sledování skóre'!C417)","v":"0"}]
[null,415,{"$f":"'Sledování skóre'!C418&COUNTIF('Sledování skóre'!$C$4:C418,'Sledování skóre'!C418)","v":"0"}]
[null,416,{"$f":"'Sledování skóre'!C419&COUNTIF('Sledování skóre'!$C$4:C419,'Sledování skóre'!C419)","v":"0"}]
[null,417,{"$f":"'Sledování skóre'!C420&COUNTIF('Sledování skóre'!$C$4:C420,'Sledování skóre'!C420)","v":"0"}]
[null,418,{"$f":"'Sledování skóre'!C421&COUNTIF('Sledování skóre'!$C$4:C421,'Sledování skóre'!C421)","v":"0"}]
[null,419,{"$f":"'Sledování skóre'!C422&COUNTIF('Sledování skóre'!$C$4:C422,'Sledování skóre'!C422)","v":"0"}]
[null,420,{"$f":"'Sledování skóre'!C423&COUNTIF('Sledování skóre'!$C$4:C423,'Sledování skóre'!C423)","v":"0"}]
[null,421,{"$f":"'Sledování skóre'!C424&COUNTIF('Sledování skóre'!$C$4:C424,'Sledování skóre'!C424)","v":"0"}]
[null,422,{"$f":"'Sledování skóre'!C425&COUNTIF('Sledování skóre'!$C$4:C425,'Sledování skóre'!C425)","v":"0"}]
[null,423,{"$f":"'Sledování skóre'!C426&COUNTIF('Sledování skóre'!$C$4:C426,'Sledování skóre'!C426)","v":"0"}]
[null,424,{"$f":"'Sledování skóre'!C427&COUNTIF('Sledování skóre'!$C$4:C427,'Sledování skóre'!C427)","v":"0"}]
[null,425,{"$f":"'Sledování skóre'!C428&COUNTIF('Sledování skóre'!$C$4:C428,'Sledování skóre'!C428)","v":"0"}]
[null,426,{"$f":"'Sledování skóre'!C429&COUNTIF('Sledování skóre'!$C$4:C429,'Sledování skóre'!C429)","v":"0"}]
[null,427,{"$f":"'Sledování skóre'!C430&COUNTIF('Sledování skóre'!$C$4:C430,'Sledování skóre'!C430)","v":"0"}]
[null,428,{"$f":"'Sledování skóre'!C431&COUNTIF('Sledování skóre'!$C$4:C431,'Sledování skóre'!C431)","v":"0"}]
[null,429,{"$f":"'Sledování skóre'!C432&COUNTIF('Sledování skóre'!$C$4:C432,'Sledování skóre'!C432)","v":"0"}]
[null,430,{"$f":"'Sledování skóre'!C433&COUNTIF('Sledování skóre'!$C$4:C433,'Sledování skóre'!C433)","v":"0"}]
[null,431,{"$f":"'Sledování skóre'!C434&COUNTIF('Sledování skóre'!$C$4:C434,'Sledování skóre'!C434)","v":"0"}]
[null,432,{"$f":"'Sledování skóre'!C435&COUNTIF('Sledování skóre'!$C$4:C435,'Sledování skóre'!C435)","v":"0"}]
[null,433,{"$f":"'Sledování skóre'!C436&COUNTIF('Sledování skóre'!$C$4:C436,'Sledování skóre'!C436)","v":"0"}]
[null,434,{"$f":"'Sledování skóre'!C437&COUNTIF('Sledování skóre'!$C$4:C437,'Sledování skóre'!C437)","v":"0"}]
[null,435,{"$f":"'Sledování skóre'!C438&COUNTIF('Sledování skóre'!$C$4:C438,'Sledování skóre'!C438)","v":"0"}]
[null,436,{"$f":"'Sledování skóre'!C439&COUNTIF('Sledování skóre'!$C$4:C439,'Sledování skóre'!C439)","v":"0"}]
[null,437,{"$f":"'Sledování skóre'!C440&COUNTIF('Sledování skóre'!$C$4:C440,'Sledování skóre'!C440)","v":"0"}]
[null,438,{"$f":"'Sledování skóre'!C441&COUNTIF('Sledování skóre'!$C$4:C441,'Sledování skóre'!C441)","v":"0"}]
[null,439,{"$f":"'Sledování skóre'!C442&COUNTIF('Sledování skóre'!$C$4:C442,'Sledování skóre'!C442)","v":"0"}]
[null,440,{"$f":"'Sledování skóre'!C443&COUNTIF('Sledování skóre'!$C$4:C443,'Sledování skóre'!C443)","v":"0"}]
[null,441,{"$f":"'Sledování skóre'!C444&COUNTIF('Sledování skóre'!$C$4:C444,'Sledování skóre'!C444)","v":"0"}]
[null,442,{"$f":"'Sledování skóre'!C445&COUNTIF('Sledování skóre'!$C$4:C445,'Sledování skóre'!C445)","v":"0"}]
[null,443,{"$f":"'Sledování skóre'!C446&COUNTIF('Sledování skóre'!$C$4:C446,'Sledování skóre'!C446)","v":"0"}]
[null,444,{"$f":"'Sledování skóre'!C447&COUNTIF('Sledování skóre'!$C$4:C447,'Sledování skóre'!C447)","v":"0"}]
[null,445,{"$f":"'Sledování skóre'!C448&COUNTIF('Sledování skóre'!$C$4:C448,'Sledování skóre'!C448)","v":"0"}]
[null,446,{"$f":"'Sledování skóre'!C449&COUNTIF('Sledování skóre'!$C$4:C449,'Sledování skóre'!C449)","v":"0"}]
[null,447,{"$f":"'Sledování skóre'!C450&COUNTIF('Sledování skóre'!$C$4:C450,'Sledování skóre'!C450)","v":"0"}]
[null,448,{"$f":"'Sledování skóre'!C451&COUNTIF('Sledování skóre'!$C$4:C451,'Sledování skóre'!C451)","v":"0"}]
[null,449,{"$f":"'Sledování skóre'!C452&COUNTIF('Sledování skóre'!$C$4:C452,'Sledování skóre'!C452)","v":"0"}]
[null,450,{"$f":"'Sledování skóre'!C453&COUNTIF('Sledování skóre'!$C$4:C453,'Sledování skóre'!C453)","v":"0"}]
[null,451,{"$f":"'Sledování skóre'!C454&COUNTIF('Sledování skóre'!$C$4:C454,'Sledování skóre'!C454)","v":"0"}]
[null,452,{"$f":"'Sledování skóre'!C455&COUNTIF('Sledování skóre'!$C$4:C455,'Sledování skóre'!C455)","v":"0"}]
[null,453,{"$f":"'Sledování skóre'!C456&COUNTIF('Sledování skóre'!$C$4:C456,'Sledování skóre'!C456)","v":"0"}]
[null,454,{"$f":"'Sledování skóre'!C457&COUNTIF('Sledování skóre'!$C$4:C457,'Sledování skóre'!C457)","v":"0"}]
[null,455,{"$f":"'Sledování skóre'!C458&COUNTIF('Sledování skóre'!$C$4:C458,'Sledování skóre'!C458)","v":"0"}]
[null,456,{"$f":"'Sledování skóre'!C459&COUNTIF('Sledování skóre'!$C$4:C459,'Sledování skóre'!C459)","v":"0"}]
[null,457,{"$f":"'Sledování skóre'!C460&COUNTIF('Sledování skóre'!$C$4:C460,'Sledování skóre'!C460)","v":"0"}]
[null,458,{"$f":"'Sledování skóre'!C461&COUNTIF('Sledování skóre'!$C$4:C461,'Sledování skóre'!C461)","v":"0"}]
[null,459,{"$f":"'Sledování skóre'!C462&COUNTIF('Sledování skóre'!$C$4:C462,'Sledování skóre'!C462)","v":"0"}]
[null,460,{"$f":"'Sledování skóre'!C463&COUNTIF('Sledování skóre'!$C$4:C463,'Sledování skóre'!C463)","v":"0"}]
[null,461,{"$f":"'Sledování skóre'!C464&COUNTIF('Sledování skóre'!$C$4:C464,'Sledování skóre'!C464)","v":"0"}]
[null,462,{"$f":"'Sledování skóre'!C465&COUNTIF('Sledování skóre'!$C$4:C465,'Sledování skóre'!C465)","v":"0"}]
[null,463,{"$f":"'Sledování skóre'!C466&COUNTIF('Sledování skóre'!$C$4:C466,'Sledování skóre'!C466)","v":"0"}]
[null,464,{"$f":"'Sledování skóre'!C467&COUNTIF('Sledování skóre'!$C$4:C467,'Sledování skóre'!C467)","v":"0"}]
[null,465,{"$f":"'Sledování skóre'!C468&COUNTIF('Sledování skóre'!$C$4:C468,'Sledování skóre'!C468)","v":"0"}]
[null,466,{"$f":"'Sledování skóre'!C469&COUNTIF('Sledování skóre'!$C$4:C469,'Sledování skóre'!C469)","v":"0"}]
[null,467,{"$f":"'Sledování skóre'!C470&COUNTIF('Sledování skóre'!$C$4:C470,'Sledování skóre'!C470)","v":"0"}]
[null,468,{"$f":"'Sledování skóre'!C471&COUNTIF('Sledování skóre'!$C$4:C471,'Sledování skóre'!C471)","v":"0"}]
[null,469,{"$f":"'Sledování skóre'!C472&COUNTIF('Sledování skóre'!$C$4:C472,'Sledování skóre'!C472)","v":"0"}]
[null,470,{"$f":"'Sledování skóre'!C473&COUNTIF('Sledování skóre'!$C$4:C473,'Sledování skóre'!C473)","v":"0"}]
[null,471,{"$f":"'Sledování skóre'!C474&COUNTIF('Sledování skóre'!$C$4:C474,'Sledování skóre'!C474)","v":"0"}]
[null,472,{"$f":"'Sledování skóre'!C475&COUNTIF('Sledování skóre'!$C$4:C475,'Sledování skóre'!C475)","v":"0"}]
[null,473,{"$f":"'Sledování skóre'!C476&COUNTIF('Sledování skóre'!$C$4:C476,'Sledování skóre'!C476)","v":"0"}]
[null,474,{"$f":"'Sledování skóre'!C477&COUNTIF('Sledování skóre'!$C$4:C477,'Sledování skóre'!C477)","v":"0"}]
[null,475,{"$f":"'Sledování skóre'!C478&COUNTIF('Sledování skóre'!$C$4:C478,'Sledování skóre'!C478)","v":"0"}]
[null,476,{"$f":"'Sledování skóre'!C479&COUNTIF('Sledování skóre'!$C$4:C479,'Sledování skóre'!C479)","v":"0"}]
[null,477,{"$f":"'Sledování skóre'!C480&COUNTIF('Sledování skóre'!$C$4:C480,'Sledování skóre'!C480)","v":"0"}]
[null,478,{"$f":"'Sledování skóre'!C481&COUNTIF('Sledování skóre'!$C$4:C481,'Sledování skóre'!C481)","v":"0"}]
[null,479,{"$f":"'Sledování skóre'!C482&COUNTIF('Sledování skóre'!$C$4:C482,'Sledování skóre'!C482)","v":"0"}]
[null,480,{"$f":"'Sledování skóre'!C483&COUNTIF('Sledování skóre'!$C$4:C483,'Sledování skóre'!C483)","v":"0"}]
[null,481,{"$f":"'Sledování skóre'!C484&COUNTIF('Sledování skóre'!$C$4:C484,'Sledování skóre'!C484)","v":"0"}]
[null,482,{"$f":"'Sledování skóre'!C485&COUNTIF('Sledování skóre'!$C$4:C485,'Sledování skóre'!C485)","v":"0"}]
[null,483,{"$f":"'Sledování skóre'!C486&COUNTIF('Sledování skóre'!$C$4:C486,'Sledování skóre'!C486)","v":"0"}]
[null,484,{"$f":"'Sledování skóre'!C487&COUNTIF('Sledování skóre'!$C$4:C487,'Sledování skóre'!C487)","v":"0"}]
[null,485,{"$f":"'Sledování skóre'!C488&COUNTIF('Sledování skóre'!$C$4:C488,'Sledování skóre'!C488)","v":"0"}]
[null,486,{"$f":"'Sledování skóre'!C489&COUNTIF('Sledování skóre'!$C$4:C489,'Sledování skóre'!C489)","v":"0"}]
[null,487,{"$f":"'Sledování skóre'!C490&COUNTIF('Sledování skóre'!$C$4:C490,'Sledování skóre'!C490)","v":"0"}]
[null,488,{"$f":"'Sledování skóre'!C491&COUNTIF('Sledování skóre'!$C$4:C491,'Sledování skóre'!C491)","v":"0"}]
[null,489,{"$f":"'Sledování skóre'!C492&COUNTIF('Sledování skóre'!$C$4:C492,'Sledování skóre'!C492)","v":"0"}]
[null,490,{"$f":"'Sledování skóre'!C493&COUNTIF('Sledování skóre'!$C$4:C493,'Sledování skóre'!C493)","v":"0"}]
[null,491,{"$f":"'Sledování skóre'!C494&COUNTIF('Sledování skóre'!$C$4:C494,'Sledování skóre'!C494)","v":"0"}]
[null,492,{"$f":"'Sledování skóre'!C495&COUNTIF('Sledování skóre'!$C$4:C495,'Sledování skóre'!C495)","v":"0"}]
[null,493,{"$f":"'Sledování skóre'!C496&COUNTIF('Sledování skóre'!$C$4:C496,'Sledování skóre'!C496)","v":"0"}]
[null,494,{"$f":"'Sledování skóre'!C497&COUNTIF('Sledování skóre'!$C$4:C497,'Sledování skóre'!C497)","v":"0"}]
[null,495,{"$f":"'Sledování skóre'!C498&COUNTIF('Sledování skóre'!$C$4:C498,'Sledování skóre'!C498)","v":"0"}]
[null,496,{"$f":"'Sledování skóre'!C499&COUNTIF('Sledování skóre'!$C$4:C499,'Sledování skóre'!C499)","v":"0"}]
[null,497,{"$f":"'Sledování skóre'!C500&COUNTIF('Sledování skóre'!$C$4:C500,'Sledování skóre'!C500)","v":"0"}]
[null,498,{"$f":"'Sledování skóre'!C501&COUNTIF('Sledování skóre'!$C$4:C501,'Sledování skóre'!C501)","v":"0"}]
[null,499,{"$f":"'Sledování skóre'!C502&COUNTIF('Sledování skóre'!$C$4:C502,'Sledování skóre'!C502)","v":"0"}]
[null,500,{"$f":"'Sledování skóre'!C503&COUNTIF('Sledování skóre'!$C$4:C503,'Sledování skóre'!C503)","v":"0"}]
[null,501,{"$f":"'Sledování skóre'!C504&COUNTIF('Sledování skóre'!$C$4:C504,'Sledování skóre'!C504)","v":"0"}]
[null,502,{"$f":"'Sledování skóre'!C505&COUNTIF('Sledování skóre'!$C$4:C505,'Sledování skóre'!C505)","v":"0"}]
[null,503,{"$f":"'Sledování skóre'!C506&COUNTIF('Sledování skóre'!$C$4:C506,'Sledování skóre'!C506)","v":"0"}]
[null,504,{"$f":"'Sledování skóre'!C507&COUNTIF('Sledování skóre'!$C$4:C507,'Sledování skóre'!C507)","v":"0"}]
[null,505,{"$f":"'Sledování skóre'!C508&COUNTIF('Sledování skóre'!$C$4:C508,'Sledování skóre'!C508)","v":"0"}]
[null,506,{"$f":"'Sledování skóre'!C509&COUNTIF('Sledování skóre'!$C$4:C509,'Sledování skóre'!C509)","v":"0"}]
[null,507,{"$f":"'Sledování skóre'!C510&COUNTIF('Sledování skóre'!$C$4:C510,'Sledování skóre'!C510)","v":"0"}]
[null,508,{"$f":"'Sledování skóre'!C511&COUNTIF('Sledování skóre'!$C$4:C511,'Sledování skóre'!C511)","v":"0"}]
[null,509,{"$f":"'Sledování skóre'!C512&COUNTIF('Sledování skóre'!$C$4:C512,'Sledování skóre'!C512)","v":"0"}]
[null,510,{"$f":"'Sledování skóre'!C513&COUNTIF('Sledování skóre'!$C$4:C513,'Sledování skóre'!C513)","v":"0"}]
[null,511,{"$f":"'Sledování skóre'!C514&COUNTIF('Sledování skóre'!$C$4:C514,'Sledování skóre'!C514)","v":"0"}]
[null,512,{"$f":"'Sledování skóre'!C515&COUNTIF('Sledování skóre'!$C$4:C515,'Sledování skóre'!C515)","v":"0"}]
[null,513,{"$f":"'Sledování skóre'!C516&COUNTIF('Sledování skóre'!$C$4:C516,'Sledování skóre'!C516)","v":"0"}]
[null,514,{"$f":"'Sledování skóre'!C517&COUNTIF('Sledování skóre'!$C$4:C517,'Sledování skóre'!C517)","v":"0"}]
[null,515,{"$f":"'Sledování skóre'!C518&COUNTIF('Sledování skóre'!$C$4:C518,'Sledování skóre'!C518)","v":"0"}]
[null,516,{"$f":"'Sledování skóre'!C519&COUNTIF('Sledování skóre'!$C$4:C519,'Sledování skóre'!C519)","v":"0"}]
[null,517,{"$f":"'Sledování skóre'!C520&COUNTIF('Sledování skóre'!$C$4:C520,'Sledování skóre'!C520)","v":"0"}]
[null,518,{"$f":"'Sledování skóre'!C521&COUNTIF('Sledování skóre'!$C$4:C521,'Sledování skóre'!C521)","v":"0"}]
[null,519,{"$f":"'Sledování skóre'!C522&COUNTIF('Sledování skóre'!$C$4:C522,'Sledování skóre'!C522)","v":"0"}]
[null,520,{"$f":"'Sledování skóre'!C523&COUNTIF('Sledování skóre'!$C$4:C523,'Sledování skóre'!C523)","v":"0"}]
[null,521,{"$f":"'Sledování skóre'!C524&COUNTIF('Sledování skóre'!$C$4:C524,'Sledování skóre'!C524)","v":"0"}]
[null,522,{"$f":"'Sledování skóre'!C525&COUNTIF('Sledování skóre'!$C$4:C525,'Sledování skóre'!C525)","v":"0"}]
[null,523,{"$f":"'Sledování skóre'!C526&COUNTIF('Sledování skóre'!$C$4:C526,'Sledování skóre'!C526)","v":"0"}]
[null,524,{"$f":"'Sledování skóre'!C527&COUNTIF('Sledování skóre'!$C$4:C527,'Sledování skóre'!C527)","v":"0"}]
[null,525,{"$f":"'Sledování skóre'!C528&COUNTIF('Sledování skóre'!$C$4:C528,'Sledování skóre'!C528)","v":"0"}]
[null,526,{"$f":"'Sledování skóre'!C529&COUNTIF('Sledování skóre'!$C$4:C529,'Sledování skóre'!C529)","v":"0"}]
[null,527,{"$f":"'Sledování skóre'!C530&COUNTIF('Sledování skóre'!$C$4:C530,'Sledování skóre'!C530)","v":"0"}]
[null,528,{"$f":"'Sledování skóre'!C531&COUNTIF('Sledování skóre'!$C$4:C531,'Sledování skóre'!C531)","v":"0"}]
[null,529,{"$f":"'Sledování skóre'!C532&COUNTIF('Sledování skóre'!$C$4:C532,'Sledování skóre'!C532)","v":"0"}]
[null,530,{"$f":"'Sledování skóre'!C533&COUNTIF('Sledování skóre'!$C$4:C533,'Sledování skóre'!C533)","v":"0"}]
[null,531,{"$f":"'Sledování skóre'!C534&COUNTIF('Sledování skóre'!$C$4:C534,'Sledování skóre'!C534)","v":"0"}]
[null,532,{"$f":"'Sledování skóre'!C535&COUNTIF('Sledování skóre'!$C$4:C535,'Sledování skóre'!C535)","v":"0"}]
[null,533,{"$f":"'Sledování skóre'!C536&COUNTIF('Sledování skóre'!$C$4:C536,'Sledování skóre'!C536)","v":"0"}]
[null,534,{"$f":"'Sledování skóre'!C537&COUNTIF('Sledování skóre'!$C$4:C537,'Sledování skóre'!C537)","v":"0"}]
[null,535,{"$f":"'Sledování skóre'!C538&COUNTIF('Sledování skóre'!$C$4:C538,'Sledování skóre'!C538)","v":"0"}]
[null,536,{"$f":"'Sledování skóre'!C539&COUNTIF('Sledování skóre'!$C$4:C539,'Sledování skóre'!C539)","v":"0"}]
[null,537,{"$f":"'Sledování skóre'!C540&COUNTIF('Sledování skóre'!$C$4:C540,'Sledování skóre'!C540)","v":"0"}]
[null,538,{"$f":"'Sledování skóre'!C541&COUNTIF('Sledování skóre'!$C$4:C541,'Sledování skóre'!C541)","v":"0"}]
[null,539,{"$f":"'Sledování skóre'!C542&COUNTIF('Sledování skóre'!$C$4:C542,'Sledování skóre'!C542)","v":"0"}]
[null,540,{"$f":"'Sledování skóre'!C543&COUNTIF('Sledování skóre'!$C$4:C543,'Sledování skóre'!C543)","v":"0"}]
[null,541,{"$f":"'Sledování skóre'!C544&COUNTIF('Sledování skóre'!$C$4:C544,'Sledování skóre'!C544)","v":"0"}]
[null,542,{"$f":"'Sledování skóre'!C545&COUNTIF('Sledování skóre'!$C$4:C545,'Sledování skóre'!C545)","v":"0"}]
[null,543,{"$f":"'Sledování skóre'!C546&COUNTIF('Sledování skóre'!$C$4:C546,'Sledování skóre'!C546)","v":"0"}]
[null,544,{"$f":"'Sledování skóre'!C547&COUNTIF('Sledování skóre'!$C$4:C547,'Sledování skóre'!C547)","v":"0"}]
[null,545,{"$f":"'Sledování skóre'!C548&COUNTIF('Sledování skóre'!$C$4:C548,'Sledování skóre'!C548)","v":"0"}]
[null,546,{"$f":"'Sledování skóre'!C549&COUNTIF('Sledování skóre'!$C$4:C549,'Sledování skóre'!C549)","v":"0"}]
[null,547,{"$f":"'Sledování skóre'!C550&COUNTIF('Sledování skóre'!$C$4:C550,'Sledování skóre'!C550)","v":"0"}]
[null,548,{"$f":"'Sledování skóre'!C551&COUNTIF('Sledování skóre'!$C$4:C551,'Sledování skóre'!C551)","v":"0"}]
[null,549,{"$f":"'Sledování skóre'!C552&COUNTIF('Sledování skóre'!$C$4:C552,'Sledování skóre'!C552)","v":"0"}]
[null,550,{"$f":"'Sledování skóre'!C553&COUNTIF('Sledování skóre'!$C$4:C553,'Sledování skóre'!C553)","v":"0"}]
[null,551,{"$f":"'Sledování skóre'!C554&COUNTIF('Sledování skóre'!$C$4:C554,'Sledování skóre'!C554)","v":"0"}]
[null,552,{"$f":"'Sledování skóre'!C555&COUNTIF('Sledování skóre'!$C$4:C555,'Sledování skóre'!C555)","v":"0"}]
[null,553,{"$f":"'Sledování skóre'!C556&COUNTIF('Sledování skóre'!$C$4:C556,'Sledování skóre'!C556)","v":"0"}]
[null,554,{"$f":"'Sledování skóre'!C557&COUNTIF('Sledování skóre'!$C$4:C557,'Sledování skóre'!C557)","v":"0"}]
[null,555,{"$f":"'Sledování skóre'!C558&COUNTIF('Sledování skóre'!$C$4:C558,'Sledování skóre'!C558)","v":"0"}]
[null,556,{"$f":"'Sledování skóre'!C559&COUNTIF('Sledování skóre'!$C$4:C559,'Sledování skóre'!C559)","v":"0"}]
[null,557,{"$f":"'Sledování skóre'!C560&COUNTIF('Sledování skóre'!$C$4:C560,'Sledování skóre'!C560)","v":"0"}]
[null,558,{"$f":"'Sledování skóre'!C561&COUNTIF('Sledování skóre'!$C$4:C561,'Sledování skóre'!C561)","v":"0"}]
[null,559,{"$f":"'Sledování skóre'!C562&COUNTIF('Sledování skóre'!$C$4:C562,'Sledování skóre'!C562)","v":"0"}]
[null,560,{"$f":"'Sledování skóre'!C563&COUNTIF('Sledování skóre'!$C$4:C563,'Sledování skóre'!C563)","v":"0"}]
[null,561,{"$f":"'Sledování skóre'!C564&COUNTIF('Sledování skóre'!$C$4:C564,'Sledování skóre'!C564)","v":"0"}]
[null,562,{"$f":"'Sledování skóre'!C565&COUNTIF('Sledování skóre'!$C$4:C565,'Sledování skóre'!C565)","v":"0"}]
[null,563,{"$f":"'Sledování skóre'!C566&COUNTIF('Sledování skóre'!$C$4:C566,'Sledování skóre'!C566)","v":"0"}]
[null,564,{"$f":"'Sledování skóre'!C567&COUNTIF('Sledování skóre'!$C$4:C567,'Sledování skóre'!C567)","v":"0"}]
[null,565,{"$f":"'Sledování skóre'!C568&COUNTIF('Sledování skóre'!$C$4:C568,'Sledování skóre'!C568)","v":"0"}]
[null,566,{"$f":"'Sledování skóre'!C569&COUNTIF('Sledování skóre'!$C$4:C569,'Sledování skóre'!C569)","v":"0"}]
[null,567,{"$f":"'Sledování skóre'!C570&COUNTIF('Sledování skóre'!$C$4:C570,'Sledování skóre'!C570)","v":"0"}]
[null,568,{"$f":"'Sledování skóre'!C571&COUNTIF('Sledování skóre'!$C$4:C571,'Sledování skóre'!C571)","v":"0"}]
[null,569,{"$f":"'Sledování skóre'!C572&COUNTIF('Sledování skóre'!$C$4:C572,'Sledování skóre'!C572)","v":"0"}]
[null,570,{"$f":"'Sledování skóre'!C573&COUNTIF('Sledování skóre'!$C$4:C573,'Sledování skóre'!C573)","v":"0"}]
[null,571,{"$f":"'Sledování skóre'!C574&COUNTIF('Sledování skóre'!$C$4:C574,'Sledování skóre'!C574)","v":"0"}]
[null,572,{"$f":"'Sledování skóre'!C575&COUNTIF('Sledování skóre'!$C$4:C575,'Sledování skóre'!C575)","v":"0"}]
[null,573,{"$f":"'Sledování skóre'!C576&COUNTIF('Sledování skóre'!$C$4:C576,'Sledování skóre'!C576)","v":"0"}]
[null,574,{"$f":"'Sledování skóre'!C577&COUNTIF('Sledování skóre'!$C$4:C577,'Sledování skóre'!C577)","v":"0"}]
[null,575,{"$f":"'Sledování skóre'!C578&COUNTIF('Sledování skóre'!$C$4:C578,'Sledování skóre'!C578)","v":"0"}]
[null,576,{"$f":"'Sledování skóre'!C579&COUNTIF('Sledování skóre'!$C$4:C579,'Sledování skóre'!C579)","v":"0"}]
[null,577,{"$f":"'Sledování skóre'!C580&COUNTIF('Sledování skóre'!$C$4:C580,'Sledování skóre'!C580)","v":"0"}]
[null,578,{"$f":"'Sledování skóre'!C581&COUNTIF('Sledování skóre'!$C$4:C581,'Sledování skóre'!C581)","v":"0"}]
[null,579,{"$f":"'Sledování skóre'!C582&COUNTIF('Sledování skóre'!$C$4:C582,'Sledování skóre'!C582)","v":"0"}]
[null,580,{"$f":"'Sledování skóre'!C583&COUNTIF('Sledování skóre'!$C$4:C583,'Sledování skóre'!C583)","v":"0"}]
[null,581,{"$f":"'Sledování skóre'!C584&COUNTIF('Sledování skóre'!$C$4:C584,'Sledování skóre'!C584)","v":"0"}]
[null,582,{"$f":"'Sledování skóre'!C585&COUNTIF('Sledování skóre'!$C$4:C585,'Sledování skóre'!C585)","v":"0"}]
[null,583,{"$f":"'Sledování skóre'!C586&COUNTIF('Sledování skóre'!$C$4:C586,'Sledování skóre'!C586)","v":"0"}]
[null,584,{"$f":"'Sledování skóre'!C587&COUNTIF('Sledování skóre'!$C$4:C587,'Sledování skóre'!C587)","v":"0"}]
[null,585,{"$f":"'Sledování skóre'!C588&COUNTIF('Sledování skóre'!$C$4:C588,'Sledování skóre'!C588)","v":"0"}]
[null,586,{"$f":"'Sledování skóre'!C589&COUNTIF('Sledování skóre'!$C$4:C589,'Sledování skóre'!C589)","v":"0"}]
[null,587,{"$f":"'Sledování skóre'!C590&COUNTIF('Sledování skóre'!$C$4:C590,'Sledování skóre'!C590)","v":"0"}]
[null,588,{"$f":"'Sledování skóre'!C591&COUNTIF('Sledování skóre'!$C$4:C591,'Sledování skóre'!C591)","v":"0"}]
[null,589,{"$f":"'Sledování skóre'!C592&COUNTIF('Sledování skóre'!$C$4:C592,'Sledování skóre'!C592)","v":"0"}]
[null,590,{"$f":"'Sledování skóre'!C593&COUNTIF('Sledování skóre'!$C$4:C593,'Sledování skóre'!C593)","v":"0"}]
[null,591,{"$f":"'Sledování skóre'!C594&COUNTIF('Sledování skóre'!$C$4:C594,'Sledování skóre'!C594)","v":"0"}]
[null,592,{"$f":"'Sledování skóre'!C595&COUNTIF('Sledování skóre'!$C$4:C595,'Sledování skóre'!C595)","v":"0"}]
[null,593,{"$f":"'Sledování skóre'!C596&COUNTIF('Sledování skóre'!$C$4:C596,'Sledování skóre'!C596)","v":"0"}]
[null,594,{"$f":"'Sledování skóre'!C597&COUNTIF('Sledování skóre'!$C$4:C597,'Sledování skóre'!C597)","v":"0"}]
[null,595,{"$f":"'Sledování skóre'!C598&COUNTIF('Sledování skóre'!$C$4:C598,'Sledování skóre'!C598)","v":"0"}]
[null,596,{"$f":"'Sledování skóre'!C599&COUNTIF('Sledování skóre'!$C$4:C599,'Sledování skóre'!C599)","v":"0"}]
[null,597,{"$f":"'Sledování skóre'!C600&COUNTIF('Sledování skóre'!$C$4:C600,'Sledování skóre'!C600)","v":"0"}]
[null,598,{"$f":"'Sledování skóre'!C601&COUNTIF('Sledování skóre'!$C$4:C601,'Sledování skóre'!C601)","v":"0"}]
[null,599,{"$f":"'Sledování skóre'!C602&COUNTIF('Sledování skóre'!$C$4:C602,'Sledování skóre'!C602)","v":"0"}]
[null,600,{"$f":"'Sledování skóre'!C603&COUNTIF('Sledování skóre'!$C$4:C603,'Sledování skóre'!C603)","v":"0"}]
[null,601,{"$f":"'Sledování skóre'!C604&COUNTIF('Sledování skóre'!$C$4:C604,'Sledování skóre'!C604)","v":"0"}]
[null,602,{"$f":"'Sledování skóre'!C605&COUNTIF('Sledování skóre'!$C$4:C605,'Sledování skóre'!C605)","v":"0"}]
[null,603,{"$f":"'Sledování skóre'!C606&COUNTIF('Sledování skóre'!$C$4:C606,'Sledování skóre'!C606)","v":"0"}]
[null,604,{"$f":"'Sledování skóre'!C607&COUNTIF('Sledování skóre'!$C$4:C607,'Sledování skóre'!C607)","v":"0"}]
[null,605,{"$f":"'Sledování skóre'!C608&COUNTIF('Sledování skóre'!$C$4:C608,'Sledování skóre'!C608)","v":"0"}]
[null,606,{"$f":"'Sledování skóre'!C609&COUNTIF('Sledování skóre'!$C$4:C609,'Sledování skóre'!C609)","v":"0"}]
[null,607,{"$f":"'Sledování skóre'!C610&COUNTIF('Sledování skóre'!$C$4:C610,'Sledování skóre'!C610)","v":"0"}]
[null,608,{"$f":"'Sledování skóre'!C611&COUNTIF('Sledování skóre'!$C$4:C611,'Sledování skóre'!C611)","v":"0"}]
[null,609,{"$f":"'Sledování skóre'!C612&COUNTIF('Sledování skóre'!$C$4:C612,'Sledování skóre'!C612)","v":"0"}]
[null,610,{"$f":"'Sledování skóre'!C613&COUNTIF('Sledování skóre'!$C$4:C613,'Sledování skóre'!C613)","v":"0"}]
[null,611,{"$f":"'Sledování skóre'!C614&COUNTIF('Sledování skóre'!$C$4:C614,'Sledování skóre'!C614)","v":"0"}]
[null,612,{"$f":"'Sledování skóre'!C615&COUNTIF('Sledování skóre'!$C$4:C615,'Sledování skóre'!C615)","v":"0"}]
[null,613,{"$f":"'Sledování skóre'!C616&COUNTIF('Sledování skóre'!$C$4:C616,'Sledování skóre'!C616)","v":"0"}]
[null,614,{"$f":"'Sledování skóre'!C617&COUNTIF('Sledování skóre'!$C$4:C617,'Sledování skóre'!C617)","v":"0"}]
[null,615,{"$f":"'Sledování skóre'!C618&COUNTIF('Sledování skóre'!$C$4:C618,'Sledování skóre'!C618)","v":"0"}]
[null,616,{"$f":"'Sledování skóre'!C619&COUNTIF('Sledování skóre'!$C$4:C619,'Sledování skóre'!C619)","v":"0"}]
[null,617,{"$f":"'Sledování skóre'!C620&COUNTIF('Sledování skóre'!$C$4:C620,'Sledování skóre'!C620)","v":"0"}]
[null,618,{"$f":"'Sledování skóre'!C621&COUNTIF('Sledování skóre'!$C$4:C621,'Sledování skóre'!C621)","v":"0"}]
[null,619,{"$f":"'Sledování skóre'!C622&COUNTIF('Sledování skóre'!$C$4:C622,'Sledování skóre'!C622)","v":"0"}]
[null,620,{"$f":"'Sledování skóre'!C623&COUNTIF('Sledování skóre'!$C$4:C623,'Sledování skóre'!C623)","v":"0"}]
[null,621,{"$f":"'Sledování skóre'!C624&COUNTIF('Sledování skóre'!$C$4:C624,'Sledování skóre'!C624)","v":"0"}]
[null,622,{"$f":"'Sledování skóre'!C625&COUNTIF('Sledování skóre'!$C$4:C625,'Sledování skóre'!C625)","v":"0"}]
[null,623,{"$f":"'Sledování skóre'!C626&COUNTIF('Sledování skóre'!$C$4:C626,'Sledování skóre'!C626)","v":"0"}]
[null,624,{"$f":"'Sledování skóre'!C627&COUNTIF('Sledování skóre'!$C$4:C627,'Sledování skóre'!C627)","v":"0"}]
[null,625,{"$f":"'Sledování skóre'!C628&COUNTIF('Sledování skóre'!$C$4:C628,'Sledování skóre'!C628)","v":"0"}]